NUMERO_MANDATO;RIGA_MANDATO;QUIET;IMPORTO_RIGA;IMPORTO_MANDATO;BENEFICIARIO;CIG;TITOLO_PAGAMENTO;DATA_MANDATO;CAPITOLO;ARTICOLO;NUMERO_IMPEGNO;TITOLO;DESCR_TITOLO;LIVELLO_II;DESCR_LIVELLO_II;LIVELLO_III;DESCR_LIVELLO_III;LIVELLO_IV;DESCR_LIVELLO_IV;LIVELLO_V;DESCR_LIVELLO_V;DATA_PAG_EFF;
778;1;0;"70,14";"70,14";Economo Comunale - CLAUDIO CHIARA; ;Rimborso bollette;05-10-2018;15;0;297;1;Spese correnti;3;Acquisto di beni e servizi;2;Acquisto di servizi;2;"Organizzazione eventi, pubblicita` e servizi per trasferta";1;Rimborso per viaggio e trasloco;05-10-2018;
779;1;0;"43,82";"43,82";Economo Comunale - CLAUDIO CHIARA; ;Rimborso bollette;05-10-2018;340;1;288;1;Spese correnti;3;Acquisto di beni e servizi;1;Acquisto di beni;2;Altri beni di consumo;999;Altri beni e materiali di consumo n.a.c.;05-10-2018;
780;1;0;"129,00";"129,00";Economo Comunale - CLAUDIO CHIARA; ;Rimborso bollette;05-10-2018;470;1;290;1;Spese correnti;3;Acquisto di beni e servizi;1;Acquisto di beni;2;Altri beni di consumo;2;"Carburanti, combustibili e lubrificanti";05-10-2018;
781;1;0;"1.487,35";"1.487,35";Economo Comunale - CLAUDIO CHIARA; ;Rimborso bollette;05-10-2018;490;0;10;1;Spese correnti;3;Acquisto di beni e servizi;2;Acquisto di servizi;16;Servizi amministrativi;2;Spese postali;05-10-2018;
782;1;0;"88,50";"88,50";Economo Comunale - CLAUDIO CHIARA; ;Rimborso bollette;05-10-2018;1440;1;4;1;Spese correnti;3;Acquisto di beni e servizi;1;Acquisto di beni;2;Altri beni di consumo;1;"Carta, cancelleria e stampati";05-10-2018;
783;1;0;"82,98";"82,98";Economo Comunale - CLAUDIO CHIARA; ;Rimborso bollette;05-10-2018;3080;1;5;1;Spese correnti;3;Acquisto di beni e servizi;1;Acquisto di beni;2;Altri beni di consumo;14;Stampati specialistici;05-10-2018;
784;1;0;"25,00";"25,00";Economo Comunale - CLAUDIO CHIARA; ;Rimborso bollette;05-10-2018;3080;2;7;1;Spese correnti;3;Acquisto di beni e servizi;2;Acquisto di servizi;99;Altri servizi;999;Altri servizi diversi n.a.c.;05-10-2018;
785;1;0;"130,55";"130,55";Economo Comunale - CLAUDIO CHIARA; ;Rimborso bollette;05-10-2018;3090;1;9;1;Spese correnti;3;Acquisto di beni e servizi;1;Acquisto di beni;2;Altri beni di consumo;999;Altri beni e materiali di consumo n.a.c.;05-10-2018;
786;1;0;"149,00";"149,00";Economo Comunale - CLAUDIO CHIARA; ;Rimborso bollette;05-10-2018;5150;1;252;1;Spese correnti;3;Acquisto di beni e servizi;1;Acquisto di beni;2;Altri beni di consumo;2;"Carburanti, combustibili e lubrificanti";05-10-2018;
787;1;0;"135,62";"135,62";Economo Comunale - CLAUDIO CHIARA; ;Rimborso bollette;05-10-2018;5150;1;253;1;Spese correnti;3;Acquisto di beni e servizi;1;Acquisto di beni;2;Altri beni di consumo;999;Altri beni e materiali di consumo n.a.c.;05-10-2018;
788;1;0;"141,66";"141,66";Economo Comunale - CLAUDIO CHIARA; ;Rimborso bollette;05-10-2018;5190;1;258;1;Spese correnti;3;Acquisto di beni e servizi;1;Acquisto di beni;2;Altri beni di consumo;2;"Carburanti, combustibili e lubrificanti";05-10-2018;
789;1;0;"50,00";"50,00";Economo Comunale - CLAUDIO CHIARA; ;Rimborso bollette;05-10-2018;5290;1;254;1;Spese correnti;3;Acquisto di beni e servizi;1;Acquisto di beni;2;Altri beni di consumo;999;Altri beni e materiali di consumo n.a.c.;05-10-2018;
790;1;0;"61,75";"61,75";Economo Comunale - CLAUDIO CHIARA; ;Rimborso bollette;05-10-2018;5910;1;255;1;Spese correnti;3;Acquisto di beni e servizi;1;Acquisto di beni;2;Altri beni di consumo;999;Altri beni e materiali di consumo n.a.c.;05-10-2018;
791;1;0;"400,00";"400,00";Economo Comunale - CLAUDIO CHIARA; ;Rimborso bollette;05-10-2018;5910;1;261;1;Spese correnti;3;Acquisto di beni e servizi;1;Acquisto di beni;2;Altri beni di consumo;2;"Carburanti, combustibili e lubrificanti";05-10-2018;
801;1;0;"68,33";"68,33";DIPENDENTI COMUNALI DIVERSI; ;STIPENDI MESE DI: OTTOBRE 18;11-10-2018;315;0;68;1;Spese correnti;3;Acquisto di beni e servizi;2;Acquisto di servizi;14;Servizi di ristorazione;2;Servizio mense personale civile;11-10-2018;
820;1;0;"264,74";"264,74";E.N.P.A. ENTE NAZ. PROT. ANIMALI ONLUS SEZ. TREVISO;Z8121E1028;SALDO Fatt.n. 1137/PA  del 25/07/2018 CUSTODIA E MANTENIMENTO CANI PRESSO IL RIFUGIO ENPA PER IL PERIODO APRILE/GIUGNO 2018 COME DA CONVENZIONE;11-10-2018;5800;0;62;1;Spese correnti;3;Acquisto di beni e servizi;2;Acquisto di servizi;15;Contratti di servizio pubblico;11;Contratti di servizio per la lotta al randagismo;11-10-2018;
821;1;0;"2.238,02";"2.238,02";MARCON R.D.M. SRL;6168195B87;SALDO Fatt.n. 2018/235/A  del 29/09/2018 SERVIZIO DI TRASPORTO SCOLASTICO DEL COMUNE DI PORTOBUFFOLE' - MESE DI SETTEMBRE 2018;11-10-2018;2720;2;13;1;Spese correnti;3;Acquisto di beni e servizi;2;Acquisto di servizi;15;Contratti di servizio pubblico;2;Contratti di servizio di trasporto scolastico;11-10-2018;
822;1;0;"5.300,34";"5.300,34";I.P.A.B. PORTOBUFFOLE`; ;AFFITTO MONTE DI PIETA' 1/10/2018-30/09/2019- D.A.A.F. 135/2018;11-10-2018;1100;0;50;1;Spese correnti;3;Acquisto di beni e servizi;2;Acquisto di servizi;7;Utilizzo di beni di terzi;1;Locazione di beni immobili;11-10-2018;
823;1;0;"7.000,00";"7.000,00";COMUNE DI MANSUE`; ;Servizio convenzionato di Assistenza Sociale e Domiciliare 2018. Versamento acconto  al Comune di Mansue.;11-10-2018;5775;0;230;1;Spese correnti;4;Trasferimenti correnti;1;Trasferimenti correnti a Amministrazioni Pubbliche;2;Trasferimenti correnti a Amministrazioni Locali;3;Trasferimenti correnti a Comuni;11-10-2018;
824;1;0;"1.586,92";"1.586,92";TESORIERE COMUNALE; ;GIRO CONTABILE FATTURE SAVNO  N.8 E 9  - VEDI REVERSALE N. 720 DI PARI IMPORTO;11-10-2018;135;0;0;1;Spese correnti;10;Altre spese correnti;3;Versamenti IVA a debito;1;Versamenti IVA a debito per le gestioni commerciali;1;Versamenti IVA a debito per le gestioni commerciali;11-10-2018;
825;1;0;"2.724,26";"2.724,26";ECOSOL S.A.S. DI CONTE ALBERTO & C.;ZBF240857A;SALDO Fatt.n. 21/PA  del 08/10/2018 ASSI IN PLASTICA RICICLATA COLORE MARRONE DIVERSE MISURE;23-10-2018;5150;1;204;1;Spese correnti;3;Acquisto di beni e servizi;1;Acquisto di beni;2;Altri beni di consumo;999;Altri beni e materiali di consumo n.a.c.;23-10-2018;
826;1;0;"900,00";"900,00";ASSOCIAZIONE CULTURALE ON THE ROAD; ;Evento "Enzo Jannacci  Quando un musicista ride" - Impegno e liquidazione del contributo all'Associazione Culturale On the road.;25-10-2018;3091;0;231;1;Spese correnti;4;Trasferimenti correnti;4;Trasferimenti correnti a Istituzioni Sociali Private;1;Trasferimenti correnti a Istituzioni Sociali Private;1;Trasferimenti correnti a Istituzioni Sociali Private;25-10-2018;
827;1;0;"240,00";"240,00";CENTRO STUDI AMMINISTRATIVI DELLA MARCA TREVIGIANA;ZB8225797B;SALDO Fatt.n. 310/2018  del 08/10/2018 UNICO PER L'IMPRESA - ANNO 2018;25-10-2018;310;0;79;1;Spese correnti;3;Acquisto di beni e servizi;2;Acquisto di servizi;4;Acquisto di servizi per formazione e addestramento del personale dell'ente;999;Acquisto di servizi per altre spese per formazione e addestramento n.a.c.;25-10-2018;
828;1;0;"366,00";"366,00";CENTRO STUDI AMMINISTRATIVI DELLA MARCA TREVIGIANA;ZB8225797B;SALDO Fatt.n. 309/2018  del 08/10/2018 ADESIONE AL PROGETTO UNICO PER L'IMPRESA;25-10-2018;7040;2;80;1;Spese correnti;3;Acquisto di beni e servizi;2;Acquisto di servizi;99;Altri servizi;999;Altri servizi diversi n.a.c.;25-10-2018;
829;1;0;"199,88";"199,88";GRAFICHE E. GASPARI S.R.L.;ZB1217C66B;ACCONTO Fatt.n. 09629  del 31/05/2018 LEGATURE PROVVEDIMENTI;25-10-2018;342;0;267;1;Spese correnti;3;Acquisto di beni e servizi;2;Acquisto di servizi;13;Servizi ausiliari per il funzionamento dell'ente;4;Stampa e rilegatura;25-10-2018;
830;1;0;"225,29";"225,29";GRAFICHE E. GASPARI S.R.L.;ZB1217C66B;SALDO Fatt.n. 09629  del 31/05/2018 LEGATURE PROVVEDIMENTI;25-10-2018;342;0;133;1;Spese correnti;3;Acquisto di beni e servizi;2;Acquisto di servizi;13;Servizi ausiliari per il funzionamento dell'ente;4;Stampa e rilegatura;25-10-2018;
832;1;0;"55,46";"55,46";TESORIERE COMUNALE; ;GIRO DA CCP TESORERIA MESE DI AGOSTO 2018 - SPESE TENUTA CONTO  ANNO 2018 - MESE DI SETTEMBRE 2018 - CFR. REV. N. 750 DI PARI IMPORTO;25-10-2018;490;0;75;1;Spese correnti;3;Acquisto di beni e servizi;2;Acquisto di servizi;16;Servizi amministrativi;999;Altre spese per servizi amministrativi;25-10-2018;
833;1;0;"536,90";"536,90";CENTRO DI MEDICINA SPA;Z9B22ACA66;"SALDO Fatt.n. 3/505  del 28/09/2018 ADEMPIMENTI IN MATERIA DI TUTELA DELLA SALUTE E DELLA SICUREZZA (VISITE, SPIROMETRIE, AUDIOMETRIE, VISIOTEST, ECC.)";05-11-2018;641;0;96;1;Spese correnti;3;Acquisto di beni e servizi;2;Acquisto di servizi;18;Servizi sanitari;999;Altri acquisti di servizi sanitari n.a.c.;05-11-2018;
834;1;0;"122,00";"122,00";E-DISTRIBUZIONE SPA;Z2B25451D4;SALDO Fatt.n. 0000918900005109  del 24/10/2018 RICHIESTA DI INTERRAMENTO PARZIALE LINEA AEREA ELETTRICA VIA RONCHE;05-11-2018;9990;8;138;2;Spese in conto capitale;2;Investimenti fissi lordi e acquisto di terreni;1;Beni materiali;9;Beni immobili;12;Infrastrutture stradali;05-11-2018;
835;1;0;"456,77";"456,77";PARTNERPATCH DI GIUSEPPE SATRIANO;Z032526D7B;SALDO Fatt.n. 205/PA  del 22/10/2018 FORNITURA PRODOTTO BITUMINOSO PER LA MANUTENZIONE DEI MANTI STRADALI ASFALTATI - PATCHSYSTEM IN SACCHI.;05-11-2018;5910;1;227;1;Spese correnti;3;Acquisto di beni e servizi;1;Acquisto di beni;2;Altri beni di consumo;999;Altri beni e materiali di consumo n.a.c.;05-11-2018;
836;1;0;"1.374,33";"1.374,33";I TIGLI 2 SOC. COOP. SOCIALE ONLUS;ZD522E33F1;SALDO Fatt.n. 699  del 30/09/2018 SERVIZIO DI PULIZIA EDIFICI COMUNALI E/O IN USO PUBBLICO - SETTEMBRE 2018;05-11-2018;2102;0;99;1;Spese correnti;3;Acquisto di beni e servizi;2;Acquisto di servizi;13;Servizi ausiliari per il funzionamento dell'ente;2;Servizi di pulizia e lavanderia;05-11-2018;
837;1;0;"1.645,20";"1.645,20";VISINTIN ELLEN;Z492300435;SALDO Fatt.n. FATTPA 3_18  del 16/10/2018 ACCONTO COORDINAMENTO SICUREZZA IN FASE DI PROGETTAZIONE ED ESECUZIONE LAVORI DI PROLUNGAMENTO PISTA CICLABILE SU S.P. 50;05-11-2018;9990;8;138;2;Spese in conto capitale;2;Investimenti fissi lordi e acquisto di terreni;1;Beni materiali;9;Beni immobili;12;Infrastrutture stradali;05-11-2018;
838;1;0;"25,71";"2.466,70";ENEL ENERGIA SPA;Z1221C2375;SALDO Fatt.n. 004811706863  del 05/10/2018 PUBBLICA - POD IT001E34262351 - CONSUMI SETTEMBRE 2018;05-11-2018;5980;2;60;1;Spese correnti;3;Acquisto di beni e servizi;2;Acquisto di servizi;5;Utenze e canoni;4;Energia elettrica;05-11-2018;
838;2;0;"37,36";"2.466,70";ENEL ENERGIA SPA;Z1221C2375;SALDO Fatt.n. 004811706862  del 05/10/2018 PUBBLICA - POD IT001E34262364 - CONSUMI SETTEMBRE 2018;05-11-2018;5980;2;60;1;Spese correnti;3;Acquisto di beni e servizi;2;Acquisto di servizi;5;Utenze e canoni;4;Energia elettrica;05-11-2018;
838;3;0;"67,53";"2.466,70";ENEL ENERGIA SPA;Z1221C2375;SALDO Fatt.n. 004811706850  del 05/10/2018 PUBBLICA - POD IT001E33747448 - CONSUMI SETTEMBRE 2018;05-11-2018;5980;2;60;1;Spese correnti;3;Acquisto di beni e servizi;2;Acquisto di servizi;5;Utenze e canoni;4;Energia elettrica;05-11-2018;
838;4;0;"106,95";"2.466,70";ENEL ENERGIA SPA;Z1221C2375;SALDO Fatt.n. 004811706859  del 05/10/2018 PUBBLICA - POD IT001E32202624 - CONSUMI SETTEMBRE 2018;05-11-2018;5980;2;60;1;Spese correnti;3;Acquisto di beni e servizi;2;Acquisto di servizi;5;Utenze e canoni;4;Energia elettrica;05-11-2018;
838;5;0;"168,26";"2.466,70";ENEL ENERGIA SPA;Z1221C2375;SALDO Fatt.n. 004811706868  del 05/10/2018 PUBBLICA - POD IT001E32111930 - CONSUMI SETTEMBRE 2018;05-11-2018;5980;2;60;1;Spese correnti;3;Acquisto di beni e servizi;2;Acquisto di servizi;5;Utenze e canoni;4;Energia elettrica;05-11-2018;
838;6;0;"181,13";"2.466,70";ENEL ENERGIA SPA;Z1221C2375;SALDO Fatt.n. 004811706857  del 05/10/2018 PUBBLICA - POD IT001E31151280 - CONSUMI SETTEMBRE 2018;05-11-2018;5980;2;60;1;Spese correnti;3;Acquisto di beni e servizi;2;Acquisto di servizi;5;Utenze e canoni;4;Energia elettrica;05-11-2018;
838;7;0;"227,44";"2.466,70";ENEL ENERGIA SPA;Z1221C2375;SALDO Fatt.n. 004811706865  del 05/10/2018 PUBBLICA - POD IT001E34262353 - CONSUMI SETTEMBRE 2018;05-11-2018;5980;2;60;1;Spese correnti;3;Acquisto di beni e servizi;2;Acquisto di servizi;5;Utenze e canoni;4;Energia elettrica;05-11-2018;
838;8;0;"278,86";"2.466,70";ENEL ENERGIA SPA;Z1221C2375;SALDO Fatt.n. 004811706853  del 05/10/2018 PUBBLICA - POD IT001E34262356 - CONSUMI SETTEMBRE 2018;05-11-2018;5980;2;60;1;Spese correnti;3;Acquisto di beni e servizi;2;Acquisto di servizi;5;Utenze e canoni;4;Energia elettrica;05-11-2018;
838;9;0;"341,84";"2.466,70";ENEL ENERGIA SPA;Z1221C2375;SALDO Fatt.n. 004811706869  del 05/10/2018 PUBBLICA - POD IT001E34262349 - CONSUMI SETTEMBRE 2018;05-11-2018;5980;2;60;1;Spese correnti;3;Acquisto di beni e servizi;2;Acquisto di servizi;5;Utenze e canoni;4;Energia elettrica;05-11-2018;
838;10;0;"380,03";"2.466,70";ENEL ENERGIA SPA;Z1221C2375;SALDO Fatt.n. 004811706854  del 05/10/2018 PUBBLICA - POD IT001E34262358 - CONSUMI SETTEMBRE 2018;05-11-2018;5980;2;60;1;Spese correnti;3;Acquisto di beni e servizi;2;Acquisto di servizi;5;Utenze e canoni;4;Energia elettrica;05-11-2018;
838;11;0;"651,59";"2.466,70";ENEL ENERGIA SPA;Z1221C2375;SALDO Fatt.n. 004811706864  del 05/10/2018 PUBBLICA - POD IT001E34262352 - CONSUMI SETTEMBRE 2018;05-11-2018;5980;2;60;1;Spese correnti;3;Acquisto di beni e servizi;2;Acquisto di servizi;5;Utenze e canoni;4;Energia elettrica;05-11-2018;
839;1;0;"43,63";"405,82";ENEL ENERGIA SPA;Z1221C2375;SALDO Fatt.n. 004811706870  del 05/10/2018 BORGO SERVI - POD IT001E34435837 - CONSUMI SETTEMBRE 2018;05-11-2018;340;2;55;1;Spese correnti;3;Acquisto di beni e servizi;2;Acquisto di servizi;5;Utenze e canoni;4;Energia elettrica;05-11-2018;
839;2;0;"47,81";"405,82";ENEL ENERGIA SPA;Z1221C2375;SALDO Fatt.n. 004811706866  del 05/10/2018 UFFICIO TURISTICO - POD IT001E34243020 - CONSUMI SETTEMBRE 2018;05-11-2018;340;2;55;1;Spese correnti;3;Acquisto di beni e servizi;2;Acquisto di servizi;5;Utenze e canoni;4;Energia elettrica;05-11-2018;
839;3;0;"63,18";"405,82";ENEL ENERGIA SPA;Z1221C2375;SALDO Fatt.n. 004811706860  del 05/10/2018 BORGO SERVI - POD IT001E34428110 - CONSUMI SETTEMBRE 2018;05-11-2018;340;2;55;1;Spese correnti;3;Acquisto di beni e servizi;2;Acquisto di servizi;5;Utenze e canoni;4;Energia elettrica;05-11-2018;
839;4;0;"251,20";"405,82";ENEL ENERGIA SPA;Z1221C2375;SALDO Fatt.n. 004811706852  del 05/10/2018 MUNICIPIO - POD IT001E34243473 - CONSUMI SETTEMBRE 2018;05-11-2018;340;2;55;1;Spese correnti;3;Acquisto di beni e servizi;2;Acquisto di servizi;5;Utenze e canoni;4;Energia elettrica;05-11-2018;
840;1;0;"128,31";"128,31";ENEL ENERGIA SPA;Z1221C2375;SALDO Fatt.n. 004811706851  del 05/10/2018 EX SCUOLA ELEMENTARE - POD IT001E34292199 - CONSUMI SETTEMBRE 2018;05-11-2018;3060;2;56;1;Spese correnti;3;Acquisto di beni e servizi;2;Acquisto di servizi;5;Utenze e canoni;4;Energia elettrica;05-11-2018;
841;1;0;"47,99";"47,99";ENEL ENERGIA SPA;Z1221C2375;SALDO Fatt.n. 004811706867  del 05/10/2018 SANTA TERESA - POD IT001E32338852 - CONSUMI SETTEMBRE 2018;05-11-2018;3090;2;57;1;Spese correnti;3;Acquisto di beni e servizi;2;Acquisto di servizi;5;Utenze e canoni;4;Energia elettrica;05-11-2018;
842;1;0;"43,21";"89,64";ENEL ENERGIA SPA;Z1221C2375;SALDO Fatt.n. 004811706856  del 05/10/2018 POMPA SOTTOPASSO - POD IT001E31077052 - CONSUMI SETTEMBRE 2018;05-11-2018;4500;2;58;1;Spese correnti;3;Acquisto di beni e servizi;2;Acquisto di servizi;5;Utenze e canoni;4;Energia elettrica;05-11-2018;
842;2;0;"46,43";"89,64";ENEL ENERGIA SPA;Z1221C2375;SALDO Fatt.n. 004811706861  del 05/10/2018 POMPA ALVEO - POD IT001E31171399 - CONSUMI SETTEMBRE 2018;05-11-2018;4500;2;58;1;Spese correnti;3;Acquisto di beni e servizi;2;Acquisto di servizi;5;Utenze e canoni;4;Energia elettrica;05-11-2018;
843;1;0;"12,10";"306,00";ENEL ENERGIA SPA;Z1221C2375;SALDO Fatt.n. 004811706858  del 05/10/2018 EX MANSIONERIA - POD IT001E34292049 - CONSUMI SETTEMBRE 2018;05-11-2018;5290;2;59;1;Spese correnti;3;Acquisto di beni e servizi;2;Acquisto di servizi;5;Utenze e canoni;4;Energia elettrica;05-11-2018;
843;2;0;"293,90";"306,00";ENEL ENERGIA SPA;Z1221C2375;SALDO Fatt.n. 004811706855  del 05/10/2018 IMPIANTI SPORTIVI - POD IT001E34292050 - CONSUMI SETTEMBRE 2018;05-11-2018;5290;2;59;1;Spese correnti;3;Acquisto di beni e servizi;2;Acquisto di servizi;5;Utenze e canoni;4;Energia elettrica;05-11-2018;
844;1;0;"1.244,40";"1.244,40";VIDALI ALESSANDRO;Z0324637BF;SALDO Fatt.n. FATTPA 6_18  del 17/10/2018 INDAGINE GEOLOGICA PER LE OPERE STRUTTURALI LUNGO LA PISTA CICLABILE SULLA S.P. 50 DA VIA GIUSTINIANI A VIA RONCHE;05-11-2018;9990;8;138;2;Spese in conto capitale;2;Investimenti fissi lordi e acquisto di terreni;1;Beni materiali;9;Beni immobili;12;Infrastrutture stradali;05-11-2018;
845;1;0;"2.765,98";"2.765,98";FURLANETTO FRANCESCA;ZA024D16DD;SALDO Fatt.n. FATTPA 4_18  del 10/10/2018 INCARICO PER PROGETTO DI FATTIBILITA' COLLEGAMENTO PISTA CICLABILE DALLA SP 50 ALL'ARGINE DEL FIUME LIVENZA;05-11-2018;9260;2;220;2;Spese in conto capitale;2;Investimenti fissi lordi e acquisto di terreni;3;Beni immateriali;5;Incarichi professionali per la realizzazione di investimenti;1;Incarichi professionali per la realizzazione di investimenti;05-11-2018;
846;1;0;"32.988,80";"32.988,80";FURLANETTO FRANCESCA;Z8E22E6184;SALDO Fatt.n. FATTPA 3_18  del 10/10/2018 INCARICO PROGETTAZIONE PROLUNGAMENTO PISTA CICLABILE DA VIA SETTIMO A VIA ROVERAT/RONCHE;05-11-2018;9990;8;138;2;Spese in conto capitale;2;Investimenti fissi lordi e acquisto di terreni;1;Beni materiali;9;Beni immobili;12;Infrastrutture stradali;05-11-2018;
847;1;0;"1.399,68";"1.399,68";PERIN SPA; ;ONERI PER PERMESSI RETRIBUITI USUFRUITI DAL SINDACO NEL 3. TRIMESTRE 2018. RIMBORSO DITTA PERIN SPA. DET. A.A.F. 147/2018;05-11-2018;21;0;91;1;Spese correnti;3;Acquisto di beni e servizi;2;Acquisto di servizi;1;Organi e incarichi istituzionali dell'amministrazione;2;Organi istituzionali dell'amministrazione - Rimborsi;05-11-2018;
848;1;0;"713,21";"713,21";I TIGLI 2 SOC. COOP. SOCIALE ONLUS;ZD4248F926;SALDO Fatt.n. 698  del 30/09/2018 SERVIZIO DI SVUOTAMENTO CESTINI - SETTEMBRE 2018;05-11-2018;4680;0;216;1;Spese correnti;3;Acquisto di beni e servizi;2;Acquisto di servizi;13;Servizi ausiliari per il funzionamento dell'ente;999;Altri servizi ausiliari n.a.c.;05-11-2018;
849;1;0;"1.407,15";"1.407,15";I TIGLI 2 SOC. COOP. SOCIALE ONLUS;ZD4248F926;ACCONTO Fatt.n. 697  del 30/09/2018 SERVIZIO DI MANUTENZIONE AREE VERDI - SETTEMBRE 2018;05-11-2018;5150;2;217;1;Spese correnti;3;Acquisto di beni e servizi;2;Acquisto di servizi;9;Manutenzione ordinaria e riparazioni;8;Manutenzione ordinaria e riparazioni di beni immobili;05-11-2018;
850;1;0;"192,76";"192,76";I TIGLI 2 SOC. COOP. SOCIALE ONLUS;ZD4248F926;SALDO Fatt.n. 697  del 30/09/2018 SERVIZIO DI MANUTENZIONE AREE VERDI - SETTEMBRE 2018;05-11-2018;5910;2;218;1;Spese correnti;3;Acquisto di beni e servizi;2;Acquisto di servizi;99;Altri servizi;999;Altri servizi diversi n.a.c.;05-11-2018;
852;1;0;"0,57";"7,19";TESORIERE COMUNALE; ;COMMISSIONI TESORERIA SU TRANSATO - A REGOLAZIONE PROVVISORIO N. 1;09-11-2018;494;0;0;1;Spese correnti;3;Acquisto di beni e servizi;2;Acquisto di servizi;17;Servizi finanziari;2;Oneri per servizio di tesoreria;09-11-2018;
852;2;0;"1,13";"7,19";TESORIERE COMUNALE; ;COMMISSIONI TESORERIA - A REGOLAZIONE PROVVISORIO N. 3;09-11-2018;494;0;0;1;Spese correnti;3;Acquisto di beni e servizi;2;Acquisto di servizi;17;Servizi finanziari;2;Oneri per servizio di tesoreria;09-11-2018;
852;3;0;"5,49";"7,19";TESORIERE COMUNALE; ;COMMISSIONI TESORERIA  PER BANCOMAT - A REGOLAZIONE PROVVISORIO N. 6;09-11-2018;494;0;0;1;Spese correnti;3;Acquisto di beni e servizi;2;Acquisto di servizi;17;Servizi finanziari;2;Oneri per servizio di tesoreria;09-11-2018;
854;1;0;"89,69";"542,49";TIM S.P.A.;Z001CC557B;SALDO Fatt.n. 8E00890180  del 05/10/2018 6BIM 2018 - CONSUMI AGOSTO-SETTEMBRE 2018;09-11-2018;340;2;42;1;Spese correnti;3;Acquisto di beni e servizi;2;Acquisto di servizi;5;Utenze e canoni;1;Telefonia fissa;09-11-2018;
854;2;0;"452,80";"542,49";TIM S.P.A.;Z001CC557B;SALDO Fatt.n. 4220418800046870  del 05/10/2018 6BIM 2018 - CONSUMI AGOSTO-SETTEMBRE 2018;09-11-2018;340;2;42;1;Spese correnti;3;Acquisto di beni e servizi;2;Acquisto di servizi;5;Utenze e canoni;1;Telefonia fissa;09-11-2018;
864;1;0;"13,71";"13,71";DIPENDENTI COMUNALI DIVERSI; ;STIPENDI MESE DI: NOVEMBRE 18;09-11-2018;160;0;236;1;Spese correnti;3;Acquisto di beni e servizi;2;Acquisto di servizi;2;"Organizzazione eventi, pubblicita` e servizi per trasferta";1;Rimborso per viaggio e trasloco;09-11-2018;
884;1;0;"46,96";"46,96";TESORIERE COMUNALE; ;GIRO DA CCP TESORERIA MESE DI OTTOBRE 2018 -  SPESE TENUTA CONTO CCP - ANNO 2018 - MESE DI OTTOBRE 2018 - CFR. REV. N. 797 DI PARI IMPORTO;15-11-2018;490;0;75;1;Spese correnti;3;Acquisto di beni e servizi;2;Acquisto di servizi;16;Servizi amministrativi;999;Altre spese per servizi amministrativi;15-11-2018;
887;1;0;"3.940,46";"3.940,46";MARCON R.D.M. SRL;6168195B87;SALDO Fatt.n. 0000266  del 31/10/2018 SERVIZIO DI TRASPORTO SCOLASTICO - A.S. 2018-2019 - MESE DI OTTOBRE 2018;16-11-2018;2720;2;13;1;Spese correnti;3;Acquisto di beni e servizi;2;Acquisto di servizi;15;Contratti di servizio pubblico;2;Contratti di servizio di trasporto scolastico;16-11-2018;
888;1;0;"790,56";"790,56";TRANS GHIAIA S.R.L. UNIPERSONALE;ZAC2456179;SALDO Fatt.n. 000066/18P  del 31/10/2018 FORNITURA DI GHIAINO PER AREA VERDE COMUNALE DI VIA ROMA;16-11-2018;9256;0;194;2;Spese in conto capitale;2;Investimenti fissi lordi e acquisto di terreni;1;Beni materiali;9;Beni immobili;999;Beni immobili n.a.c.;16-11-2018;
889;1;0;"529,48";"529,48";SQUILLANTE FELICE ABBIGLIAMENTO ED ACCESSORI;ZA02563A43;SALDO Fatt.n. E2018113  del 30/10/2018 FORNITURA VESTIARIO ED ACCESSORI PER POLIZIA LOCALE;16-11-2018;1750;0;232;1;Spese correnti;3;Acquisto di beni e servizi;1;Acquisto di beni;2;Altri beni di consumo;4;Vestiario;16-11-2018;
890;1;0;"2.175,40";"2.175,40";FONDAZIONE OPERA IMMACOLATA CONCEZIONE ONLUS; ;SALDO Fatt.n. 1194/PI  del 30/09/2018 RETTA RICOVERO C. G. - MESE DI SETTEMBRE 2018;16-11-2018;5765;0;131;1;Spese correnti;3;Acquisto di beni e servizi;2;Acquisto di servizi;18;Servizi sanitari;9;Acquisti di servizi sanitari per assistenza ospedaliera;16-11-2018;
891;1;0;"319,01";"319,01";TESORERIA PROVINCIALE DELLO STATO; ;Liquidazione somme spettanti al Ministero per il rilascio della Carta d'Identita Elettronica. Terzo trimestre 2018 mese di luglio. DET. A.G. N. 86/2018;16-11-2018;1440;3;242;1;Spese correnti;4;Trasferimenti correnti;1;Trasferimenti correnti a Amministrazioni Pubbliche;1;Trasferimenti correnti a Amministrazioni Centrali;1;Trasferimenti correnti a Ministeri;16-11-2018;
892;1;0;"134,32";"134,32";TESORERIA PROVINCIALE DELLO STATO; ;Liquidazione somme spettanti al Ministero per il rilascio della Carta d'Identita Elettronica. Terzo trimestre 2018 mese di agosto. DET. A.G. 87/2018;16-11-2018;1440;3;243;1;Spese correnti;4;Trasferimenti correnti;1;Trasferimenti correnti a Amministrazioni Pubbliche;1;Trasferimenti correnti a Amministrazioni Centrali;1;Trasferimenti correnti a Ministeri;16-11-2018;
893;1;0;"67,16";"67,16";TESORERIA PROVINCIALE DELLO STATO; ;Liquidazione somme spettanti al Ministero per il rilascio della Carta d'Identita Elettronica. Terzo trimestre 2018 mese di settembre. DET. A.G. N. 88/2018;16-11-2018;1440;3;244;1;Spese correnti;4;Trasferimenti correnti;1;Trasferimenti correnti a Amministrazioni Pubbliche;1;Trasferimenti correnti a Amministrazioni Centrali;1;Trasferimenti correnti a Ministeri;16-11-2018;
894;1;0;"83,95";"83,95";TESORERIA PROVINCIALE DELLO STATO; ;Liquidazione somme spettanti al Ministero per il rilascio della Carta d'Identita Elettronica. Quarto trimestre 2018 mese di Ottobre. DET. A.G. N. 89/2018;16-11-2018;1440;3;245;1;Spese correnti;4;Trasferimenti correnti;1;Trasferimenti correnti a Amministrazioni Pubbliche;1;Trasferimenti correnti a Amministrazioni Centrali;1;Trasferimenti correnti a Ministeri;16-11-2018;
895;1;0;"45,00";"45,00";COMUNE DI ORMELLE; ;Liquidazione della quota parte della spesa sostenuta dal Comune di Ormelle per realizzazione manifesti "Cultura e Colture" - edizione 2018. DET. A.A.F. N. 156/2018;16-11-2018;510;1;248;1;Spese correnti;4;Trasferimenti correnti;1;Trasferimenti correnti a Amministrazioni Pubbliche;2;Trasferimenti correnti a Amministrazioni Locali;3;Trasferimenti correnti a Comuni;16-11-2018;
896;1;0;"21,84";"1.454,92";ANGELELLA SRL; ;SALDO Fatt.n. 47/E  del 11/10/2018 CEDOLA LIBRARIA ALUNNA CLASSE SECONDA - SCUOLA PRIMARIA GAIARINE;16-11-2018;2360;0;53;1;Spese correnti;3;Acquisto di beni e servizi;1;Acquisto di beni;2;Altri beni di consumo;999;Altri beni e materiali di consumo n.a.c.;16-11-2018;
896;2;0;"48,67";"1.454,92";CARTOLIBRERIA CENEDESE SAS DI NARDO NICOLETTA; ;SALDO NOTA RIEPILOGATIVA N. 1-NOTA  del 24/10/2018 FORNITURA DI TESTI SCOLASTICI ANNO 2018/19;16-11-2018;2360;0;53;1;Spese correnti;3;Acquisto di beni e servizi;1;Acquisto di beni;2;Altri beni di consumo;999;Altri beni e materiali di consumo n.a.c.;16-11-2018;
896;3;0;"21,83";"1.454,92";CARTOLIBRERIA TAVELLA BRIAN & C. SNC; ;SALDO NOTA RIEPILOGATIVA N. 1-NOTA  del 18/10/2018 FORNITURA DI TESTI SCOLASTICI ANNO 2018/19;16-11-2018;2360;0;53;1;Spese correnti;3;Acquisto di beni e servizi;1;Acquisto di beni;2;Altri beni di consumo;999;Altri beni e materiali di consumo n.a.c.;16-11-2018;
896;4;0;"22,58";"1.454,92";LA CARTOTECNICA DI OMETTO MARIA TERESA; ;SALDO NOTA RIEPILOGATIVA .n. 2-NOTA  del 23/10/2018 FORNITURA DI TESTI SCOLASTICI ANNO 2018/19;16-11-2018;2360;0;53;1;Spese correnti;3;Acquisto di beni e servizi;1;Acquisto di beni;2;Altri beni di consumo;999;Altri beni e materiali di consumo n.a.c.;16-11-2018;
896;5;0;"875,49";"1.454,92";LA CARTOTECNICA DI OMETTO MARIA TERESA; ;SALDO NOTA RIEPILOGATIVA n. 1-NOTA  del 11/10/2018 FORNITURA DI TESTI SCOLASTICI ANNO 2018/19;16-11-2018;2360;0;53;1;Spese correnti;3;Acquisto di beni e servizi;1;Acquisto di beni;2;Altri beni di consumo;999;Altri beni e materiali di consumo n.a.c.;16-11-2018;
896;6;0;"169,71";"1.454,92";LIBRERIA BECCO GIALLO DI ZAGHIS GIANNI E GIORGIO SAS; ;SALDO Fatt.n. 9/02  del 24/10/2018 LIBRI DI TESTO VARIE CLASSI;16-11-2018;2360;0;53;1;Spese correnti;3;Acquisto di beni e servizi;1;Acquisto di beni;2;Altri beni di consumo;999;Altri beni e materiali di consumo n.a.c.;16-11-2018;
896;7;0;"223,31";"1.454,92";MACCAN MARZIO; ;SALDO Fatt.n. 11  del 28/09/2018 TESTI SCOLASTICI - ANNO 2018/2019;16-11-2018;2360;0;53;1;Spese correnti;3;Acquisto di beni e servizi;1;Acquisto di beni;2;Altri beni di consumo;999;Altri beni e materiali di consumo n.a.c.;16-11-2018;
896;8;0;"71,49";"1.454,92";SHOPPING ROOM DI DANIEL ELISABETTA; ;SALDO Fatt.n. 2/PA  del 19/09/2018 TESTI SCOLASTICI ALUNNI DAL PONT DAVIDE (5.A PRIMARIA) E DAL PONT SAMUELE (2.A PRIMARIA);16-11-2018;2360;0;53;1;Spese correnti;3;Acquisto di beni e servizi;1;Acquisto di beni;2;Altri beni di consumo;999;Altri beni e materiali di consumo n.a.c.;16-11-2018;
897;1;0;"705,47";"705,47";IMPIANTI ELETTRICI DE MARCHI SAS di ELISABETTA E FULVIO;Z9E1508D28;ACCONTO Fatt.n. FATTPA 23_18  del 07/11/2018 TOTALE MANUTENZIONE ORDINARIA E STRAORDINARIA DEGLI IMPIANTI DI PUBBLICA ILLUMINAZIONE ED ELETTRICI- SETTEMBRE 2018;16-11-2018;5980;3;223;1;Spese correnti;3;Acquisto di beni e servizi;2;Acquisto di servizi;9;Manutenzione ordinaria e riparazioni;4;Manutenzione ordinaria e riparazioni di impianti e macchinari;16-11-2018;
898;1;0;"474,45";"474,45";IMPIANTI ELETTRICI DE MARCHI SAS di ELISABETTA E FULVIO;Z9E1508D28;SALDO Fatt.n. FATTPA 23_18  del 07/11/2018 TOTALE MANUTENZIONE ORDINARIA E STRAORDINARIA DEGLI IMPIANTI DI PUBBLICA ILLUMINAZIONE ED ELETTRICI- SETTEMBRE 2018;16-11-2018;2100;0;193;1;Spese correnti;3;Acquisto di beni e servizi;2;Acquisto di servizi;9;Manutenzione ordinaria e riparazioni;8;Manutenzione ordinaria e riparazioni di beni immobili;16-11-2018;
899;1;0;"326,35";"326,35";IMPIANTI ELETTRICI DE MARCHI SAS di ELISABETTA E FULVIO;Z9E1508D28;ACCONTO Fatt.n. FATTPA 22_18  del 07/11/2018 TOTALE MANUTENZIONE ORDINARIA E STRAORDINARIA DEGLI IMPIANTI DI PUBBLICA ILLUMINAZIONE ED ELETTRICI - LUGLIO E AGOSTO 2018;16-11-2018;5980;3;223;1;Spese correnti;3;Acquisto di beni e servizi;2;Acquisto di servizi;9;Manutenzione ordinaria e riparazioni;4;Manutenzione ordinaria e riparazioni di impianti e macchinari;16-11-2018;
900;1;0;"54,42";"54,42";IMPIANTI ELETTRICI DE MARCHI SAS di ELISABETTA E FULVIO;Z9E1508D28;ACCONTO Fatt.n. FATTPA 22_18  del 07/11/2018 TOTALE MANUTENZIONE ORDINARIA E STRAORDINARIA DEGLI IMPIANTI DI PUBBLICA ILLUMINAZIONE ED ELETTRICI - LUGLIO E AGOSTO 2018;16-11-2018;2100;0;224;1;Spese correnti;3;Acquisto di beni e servizi;2;Acquisto di servizi;9;Manutenzione ordinaria e riparazioni;8;Manutenzione ordinaria e riparazioni di beni immobili;16-11-2018;
901;1;0;"136,51";"136,51";IMPIANTI ELETTRICI DE MARCHI SAS di ELISABETTA E FULVIO;Z9E1508D28;SALDO Fatt.n. FATTPA 22_18  del 07/11/2018 TOTALE MANUTENZIONE ORDINARIA E STRAORDINARIA DEGLI IMPIANTI DI PUBBLICA ILLUMINAZIONE ED ELETTRICI - LUGLIO E AGOSTO 2018;16-11-2018;2100;0;193;1;Spese correnti;3;Acquisto di beni e servizi;2;Acquisto di servizi;9;Manutenzione ordinaria e riparazioni;8;Manutenzione ordinaria e riparazioni di beni immobili;16-11-2018;
902;1;0;"14,66";"46,53";PIAVE SERVIZI S.R.L.; ;SALDO Fatt.n. 04201800002820  del 25/07/2018 UTENZA 10025534-1 - IMPIANTI SPORTIVI - CONSUMI 2. TRIMESTRE 2018;22-11-2018;5290;2;49;1;Spese correnti;3;Acquisto di beni e servizi;2;Acquisto di servizi;5;Utenze e canoni;5;Acqua;22-11-2018;
902;2;0;"31,87";"46,53";PIAVE SERVIZI S.R.L.; ;SALDO Fatt.n. 04201800002814  del 25/07/2018;22-11-2018;5290;2;49;1;Spese correnti;3;Acquisto di beni e servizi;2;Acquisto di servizi;5;Utenze e canoni;5;Acqua;22-11-2018;
903;1;0;"963,80";"963,80";I TIGLI 2 SOC. COOP. SOCIALE ONLUS;ZD4248F926;ACCONTO Fatt.n. 757  del 31/10/2018 SERVIZIO DI MANUTENZIONE AREE VERDI ED IMMOBILI E PULIZIA CIMITERO - OTTOBRE 2018;23-11-2018;5150;2;217;1;Spese correnti;3;Acquisto di beni e servizi;2;Acquisto di servizi;9;Manutenzione ordinaria e riparazioni;8;Manutenzione ordinaria e riparazioni di beni immobili;23-11-2018;
904;1;0;"77,10";"77,10";I TIGLI 2 SOC. COOP. SOCIALE ONLUS;ZD4248F926;SALDO Fatt.n. 757  del 31/10/2018 SERVIZIO DI MANUTENZIONE AREE VERDI ED IMMOBILI E PULIZIA CIMITERO - OTTOBRE 2018;23-11-2018;5910;2;218;1;Spese correnti;3;Acquisto di beni e servizi;2;Acquisto di servizi;99;Altri servizi;999;Altri servizi diversi n.a.c.;23-11-2018;
905;1;0;"983,08";"983,08";I TIGLI 2 SOC. COOP. SOCIALE ONLUS;ZD4248F926;SALDO Fatt.n. 758  del 31/10/2018 SERVIZIO DI PULIZIA STRADE E SVUOTAMENTO CESTINI - OTTOBRE 2018;23-11-2018;4680;0;216;1;Spese correnti;3;Acquisto di beni e servizi;2;Acquisto di servizi;13;Servizi ausiliari per il funzionamento dell'ente;999;Altri servizi ausiliari n.a.c.;23-11-2018;
906;1;0;"1.645,60";"1.645,60";VISINTIN ELLEN;Z492300435;SALDO Fatt.n. FATTPA 4_18  del 19/11/2018 INCARICO PER COORDINAMENTO SICUREZZA IN FASE DI PROGETTAZIONE ED ESECUZIONE LAVORI DI PROLUNGAMENTO PISTA CICLABILE SU S.P. 50. SALDO;23-11-2018;9990;8;138;2;Spese in conto capitale;2;Investimenti fissi lordi e acquisto di terreni;1;Beni materiali;9;Beni immobili;12;Infrastrutture stradali;23-11-2018;
907;1;0;"1.150,16";"1.150,16";I TIGLI 2 SOC. COOP. SOCIALE ONLUS;ZD522E33F1;SALDO Fatt.n. 761  del 31/10/2018 SERVIZIO DI PULIZIA EDIFICI COMUNALI E/O IN USO PUBBLICO - OTTOBRE 2018;23-11-2018;2102;0;99;1;Spese correnti;3;Acquisto di beni e servizi;2;Acquisto di servizi;13;Servizi ausiliari per il funzionamento dell'ente;2;Servizi di pulizia e lavanderia;23-11-2018;
908;1;0;"336,61";"336,61";IL SOLE 24 ORE S.P.A.;ZBD23D8E0E;SALDO Fatt.n. 1410002093  del 31/08/2018 SERVIZI BUSINESS CLASS - SALDO ABBONAMENTO ANNO 2018 CARTA+DIGITALE;23-11-2018;420;1;137;1;Spese correnti;3;Acquisto di beni e servizi;1;Acquisto di beni;1;"Giornali, riviste e pubblicazioni";1;Giornali e riviste;23-11-2018;
909;1;0;"4.300,00";"4.300,00";LAZZARIN ENZO;ZD42079791;VERSAMENTO 1. ACCONTO RUP PER LAVORI Prolungamento della pista ciclabile sulla Strada provinciale SP 50 di Portobuffole" da Via Settimo a Via Roverat e Via Ronche. DET. A.T. 159/2018;23-11-2018;9260;2;184;2;Spese in conto capitale;2;Investimenti fissi lordi e acquisto di terreni;3;Beni immateriali;5;Incarichi professionali per la realizzazione di investimenti;1;Incarichi professionali per la realizzazione di investimenti;23-11-2018;
911;1;0;"688,00";"688,00";INPS - ISTITUTO NAZIONALE PREVIDENZA SOCIALE;ZD42079791;VERSAMENTO CONTRIBUTO INPS GESTIONE SEPARATA A CARICO ENTE SU LIQUIDAZIONE ING. ENZO LAZZARIN;23-11-2018;9260;2;184;2;Spese in conto capitale;2;Investimenti fissi lordi e acquisto di terreni;3;Beni immateriali;5;Incarichi professionali per la realizzazione di investimenti;1;Incarichi professionali per la realizzazione di investimenti;23-11-2018;
913;1;0;"27.337,20";"27.337,20";AUG ARREDI URBANI E GIOCHI SRL;Z7F2456217;SALDO Fatt.n. 0000109/PA  del 20/11/2018 INTERVENTO DI RIQUALIFICAZIONE AREA GIOCO VIA ROMA CON SOSTITUZIONE ARREDI;29-11-2018;9256;0;194;2;Spese in conto capitale;2;Investimenti fissi lordi e acquisto di terreni;1;Beni materiali;9;Beni immobili;999;Beni immobili n.a.c.;29-11-2018;
914;1;0;"7.150,00";"7.150,00";ADAMI MONTAGGI DI ADAMI V. & C. SAS;Z7F2456217;"SALDO Fatt.n. 39 C/2018  del 31/10/2018 INTERVENTO DI RIQUALIFICAZIONE AREA GIOCO IN VIA ROMA - PREPARAZIONE SOTTOFONDI, MONTAGGIO E POSA";29-11-2018;9256;0;194;2;Spese in conto capitale;2;Investimenti fissi lordi e acquisto di terreni;1;Beni materiali;9;Beni immobili;999;Beni immobili n.a.c.;29-11-2018;
915;1;0;"475,00";"475,00";ASS. PRO LOCO DI PORTOBUFFOLE`; ;Liquidazione acconto contributo del 50% alla PRO LOCO per l'organizzazione di un concerto in occasione delle giornate della cultura ebraica. Det. A.A.G. n. 84/2018;29-11-2018;3091;0;228;1;Spese correnti;4;Trasferimenti correnti;4;Trasferimenti correnti a Istituzioni Sociali Private;1;Trasferimenti correnti a Istituzioni Sociali Private;1;Trasferimenti correnti a Istituzioni Sociali Private;29-11-2018;
916;1;0;"84,40";"84,40";VDS SPA;ZC921C21CC;SALDO Fatt.n. 7/18  del 31/10/2018 VERIFICA FISCALE REGISTRATORE DI CASSA FIDELIS MATRICOLA 44001627;05-12-2018;340;4;15;1;Spese correnti;3;Acquisto di beni e servizi;2;Acquisto di servizi;9;Manutenzione ordinaria e riparazioni;6;Manutenzione ordinaria e riparazioni di macchine per ufficio;05-12-2018;
917;1;0;"21,96";"21,96";SERVIZI TREVISO SRL;Z47228FD7D;SALDO Fatt.n. 117/39  del 22/11/2018 SERVIZI CONNESSI AGLI ADEMPIMENTI DI ASSISTENZA FISCALE - BONUS GAS E ENERGIA - 1 SEMESTRE 2018;05-12-2018;5785;0;105;1;Spese correnti;3;Acquisto di beni e servizi;2;Acquisto di servizi;11;Prestazioni professionali e specialistiche;999;Altre prestazioni professionali e specialistiche n.a.c.;05-12-2018;
918;1;0;"235,70";"235,70";MYO S.R.L.;ZD7249F204;SALDO Fatt.n. 2040/180023544  del 20/09/2018 SERIE REGISTRI STATO CIVILE ALLESTITI;05-12-2018;1440;1;206;1;Spese correnti;3;Acquisto di beni e servizi;1;Acquisto di beni;2;Altri beni di consumo;1;"Carta, cancelleria e stampati";05-12-2018;
919;1;0;"4.017,77";"4.017,77";PADANA S.R.L.;ZF725A4E61;SALDO Fatt.n. 201/PA  del 30/11/2018 LAVORI DI MANUTENZIONE SEGNALETICA ORIZZONTALE;05-12-2018;5910;3;237;1;Spese correnti;3;Acquisto di beni e servizi;2;Acquisto di servizi;9;Manutenzione ordinaria e riparazioni;8;Manutenzione ordinaria e riparazioni di beni immobili;05-12-2018;
920;1;0;"10,98";"10,98";CISL VENETO SERVIZI SRL;Z81228FF65;SALDO Fatt.n. TVP/57  del 27/08/2018 PRATICHE BONUS ENERGIA E GAS - PRIMO SEMESTRE 2018;05-12-2018;5785;0;107;1;Spese correnti;3;Acquisto di beni e servizi;2;Acquisto di servizi;11;Prestazioni professionali e specialistiche;999;Altre prestazioni professionali e specialistiche n.a.c.;05-12-2018;
921;1;0;"132,00";"132,00";DELFINO & PARTNERS SPA;Z552549FD2;SALDO Fatt.n. 1132/PA  del 12/11/2018 PARTECIPAZIONE DI ANTONELLA ROSSIT AL SEMINARIO DEL  11/10/2018 FINANZA LOCALE E BILANCIO 2019-2021;05-12-2018;310;0;229;1;Spese correnti;3;Acquisto di beni e servizi;2;Acquisto di servizi;4;Acquisto di servizi per formazione e addestramento del personale dell'ente;999;Acquisto di servizi per altre spese per formazione e addestramento n.a.c.;05-12-2018;
922;1;0;"439,20";"439,20";PETRIS SISTEMI SNC DI ING. PETRIS GIANLUCA & C.;ZC725841A3;SALDO Fatt.n. 81/A  del 31/10/2018 CANONE ANNUALE ASSISTENZA TECNICA PER SOFTWARE GESTIONE PRESENZE;05-12-2018;340;2;233;1;Spese correnti;3;Acquisto di beni e servizi;2;Acquisto di servizi;5;Utenze e canoni;999;Utenze e canoni per altri servizi n.a.c.;05-12-2018;
923;1;0;"710,00";"710,00";COMUNE DI FONTANELLE; ;"LIQUIDAZIONE AL COMUNE DI FONTANELLE DELLE SPESE IN CONVENZIONE RELATIVE AI SERVIZI DI POLIZIA LOCALE DEI COMUNI DI FONTANELLE, MANSUE' E PORTOBUFFOLE' IN SERVIZIO ASSOCIATO. DET. A.A.G. N. 96/2018.";05-12-2018;1780;1;255;1;Spese correnti;3;Acquisto di beni e servizi;1;Acquisto di beni;2;Altri beni di consumo;999;Altri beni e materiali di consumo n.a.c.;05-12-2018;
924;1;0;"246,58";"246,58";COMUNE DI FONTANELLE; ;"LIQUIDAZIONE AL COMUNE DI FONTANELLE DELLE SPESE IN CONVENZIONE RELATIVE AI SERVIZI DI POLIZIA LOCALE DEI COMUNI DI FONTANELLE, MANSUE' E PORTOBUFFOLE' IN SERVIZIO ASSOCIATO. DET. A.A.G. N. 96/2018.";05-12-2018;1780;2;256;1;Spese correnti;3;Acquisto di beni e servizi;2;Acquisto di servizi;19;Servizi informatici e di telecomunicazioni;999;Altri servizi informatici e di telecomunicazioni n.a.c.;05-12-2018;
929;1;0;"488,00";"488,00";FERRO MICHELE;Z8924BBD6C;SALDO Fatt.n. 07  del 27/11/2018 STESA DI GHIAINO NELL'AMBITO DELL'INTERVENTO DI RIQUALIFICAZIONE AREA VERDE COMUNALE DI VIA ROMA;05-12-2018;9256;0;194;2;Spese in conto capitale;2;Investimenti fissi lordi e acquisto di terreni;1;Beni materiali;9;Beni immobili;999;Beni immobili n.a.c.;05-12-2018;
930;1;0;"347,70";"347,70";IMPIANTI ELETTRICI DE MARCHI SAS di ELISABETTA E FULVIO;Z9E1508D28;ACCONTO Fatt.n. FATTPA 27_18  del 27/11/2018 TOTALE MANUTENZIONE ORDINARIA E STRAORDINARIA DEGLI IMPIANTI DI PUBBLICA ILLUMINAZIONE ED EDIFICI - OTTOBRE 2018;05-12-2018;5980;3;223;1;Spese correnti;3;Acquisto di beni e servizi;2;Acquisto di servizi;9;Manutenzione ordinaria e riparazioni;4;Manutenzione ordinaria e riparazioni di impianti e macchinari;05-12-2018;
931;1;0;"268,34";"268,34";IMPIANTI ELETTRICI DE MARCHI SAS di ELISABETTA E FULVIO;Z9E1508D28;SALDO Fatt.n. FATTPA 27_18  del 27/11/2018 TOTALE MANUTENZIONE ORDINARIA E STRAORDINARIA DEGLI IMPIANTI DI PUBBLICA ILLUMINAZIONE ED EDIFICI - OTTOBRE 2018;05-12-2018;2100;0;193;1;Spese correnti;3;Acquisto di beni e servizi;2;Acquisto di servizi;9;Manutenzione ordinaria e riparazioni;8;Manutenzione ordinaria e riparazioni di beni immobili;05-12-2018;
932;1;0;"200,00";"200,00";MINISTERO DELLO SVILUPPO ECONOMICO; ;Liquidazione autorizzazione generale per l'installazione e l'esercizio di reti di comunicazione elettronica ad uso privato. Contributo per istruttoria istanza e vigilanza e controllo annuale. Anno 2018. Riferimento pratica N. 5616/fo/SPI;05-12-2018;340;3;101;1;Spese correnti;3;Acquisto di beni e servizi;2;Acquisto di servizi;19;Servizi informatici e di telecomunicazioni;4;Servizi di rete per trasmissione dati e VoIP e relativa manutenzione;05-12-2018;
933;1;0;"1.777,89";"1.777,89";"SINDACO, VICESINDACO E ASSESSORI COMUNALI"; ;STIPENDI MESE DI: DICEMBRE 18;11-12-2018;20;0;88;1;Spese correnti;3;Acquisto di beni e servizi;2;Acquisto di servizi;1;Organi e incarichi istituzionali dell'amministrazione;1;Organi istituzionali dell'amministrazione - Indennità;11-12-2018;
944;1;0;"46,46";"46,46";DIPENDENTI COMUNALI DIVERSI; ;STIPENDI MESE DI: DICEMBRE 18;11-12-2018;315;0;68;1;Spese correnti;3;Acquisto di beni e servizi;2;Acquisto di servizi;14;Servizi di ristorazione;2;Servizio mense personale civile;11-12-2018;
963;1;0;"1,30";"1,30";TESORIERE COMUNALE; ;COMMISSIONI SU PAGOBANCOMAT A COPERTURA PROVVISORIO N. 8 DEL 07/11/18;12-12-2018;494;0;0;1;Spese correnti;3;Acquisto di beni e servizi;2;Acquisto di servizi;17;Servizi finanziari;2;Oneri per servizio di tesoreria;12-12-2018;
964;1;1130;"4.774,00";"4.774,00";ERARIO STATO; ;Versamento acconto IVA relativo all'anno 2018. DET. AAF N. 163/2018;12-12-2018;135;0;254;1;Spese correnti;10;Altre spese correnti;3;Versamenti IVA a debito;1;Versamenti IVA a debito per le gestioni commerciali;1;Versamenti IVA a debito per le gestioni commerciali;27-12-2018;
965;1;0;"45,13";"505,33";ENEL ENERGIA SPA;Z1221C2375;SALDO Fatt.n. 004812041112  del 13/11/2018 BORGO SERVI - POD IT001E34435837 - CONSUMI OTTOBRE 2018;12-12-2018;340;2;55;1;Spese correnti;3;Acquisto di beni e servizi;2;Acquisto di servizi;5;Utenze e canoni;4;Energia elettrica;12-12-2018;
965;2;0;"57,77";"505,33";ENEL ENERGIA SPA;Z1221C2375;SALDO Fatt.n. 004812041108  del 13/11/2018 UFFICIO TURISTICO - POD IT001E34243020 - CONSUMI OTTOBRE 2018;12-12-2018;340;2;55;1;Spese correnti;3;Acquisto di beni e servizi;2;Acquisto di servizi;5;Utenze e canoni;4;Energia elettrica;12-12-2018;
965;3;0;"62,88";"505,33";ENEL ENERGIA SPA;Z1221C2375;SALDO Fatt.n. 004812041103  del 13/11/2018 BORGO SERVI - POD IT001E34428110 - CONSUMI OTTOBRE 2018;12-12-2018;340;2;55;1;Spese correnti;3;Acquisto di beni e servizi;2;Acquisto di servizi;5;Utenze e canoni;4;Energia elettrica;12-12-2018;
965;4;0;"339,55";"505,33";ENEL ENERGIA SPA;Z1221C2375;SALDO Fatt.n. 004812041095  del 13/11/2018 MUNICIPIO - POD IT001E34243473 - CONSUMI OTTOBRE 2018;12-12-2018;340;2;55;1;Spese correnti;3;Acquisto di beni e servizi;2;Acquisto di servizi;5;Utenze e canoni;4;Energia elettrica;12-12-2018;
966;1;0;"150,49";"150,49";ENEL ENERGIA SPA;Z1221C2375;SALDO Fatt.n. 004812041094  del 13/11/2018 SCUOLA ELEMENTARE - POD IT001E34292199 - CONSUMI OTTOBRE 2018;12-12-2018;3060;2;56;1;Spese correnti;3;Acquisto di beni e servizi;2;Acquisto di servizi;5;Utenze e canoni;4;Energia elettrica;12-12-2018;
967;1;0;"47,62";"47,62";ENEL ENERGIA SPA;Z1221C2375;SALDO Fatt.n. 004812041109  del 13/11/2018 SANTA TERESA  - POD IT001E32338852 - CONSUMI OTTOBRE 2018;12-12-2018;3090;2;57;1;Spese correnti;3;Acquisto di beni e servizi;2;Acquisto di servizi;5;Utenze e canoni;4;Energia elettrica;12-12-2018;
968;1;0;"44,40";"92,09";ENEL ENERGIA SPA;Z1221C2375;SALDO Fatt.n. 004812041099  del 13/11/2018 POMPA SOTTOPASSO - POD IT001E31077052 - CONSUMI OTTOBRE 2018;12-12-2018;4500;2;58;1;Spese correnti;3;Acquisto di beni e servizi;2;Acquisto di servizi;5;Utenze e canoni;4;Energia elettrica;12-12-2018;
968;2;0;"47,69";"92,09";ENEL ENERGIA SPA;Z1221C2375;SALDO Fatt.n. 004812041104  del 13/11/2018 POMPA ALVEO - POD IT001E31171399 - CONSUMI OTTOBRE 2018;12-12-2018;4500;2;58;1;Spese correnti;3;Acquisto di beni e servizi;2;Acquisto di servizi;5;Utenze e canoni;4;Energia elettrica;12-12-2018;
969;1;0;"12,10";"202,51";ENEL ENERGIA SPA;Z1221C2375;SALDO Fatt.n. 004812041101  del 13/11/2018 EX MANSIONERIA POD IT001E34292049 - CONSUMI MESE DI OTTOBRE 2018;12-12-2018;5290;2;59;1;Spese correnti;3;Acquisto di beni e servizi;2;Acquisto di servizi;5;Utenze e canoni;4;Energia elettrica;12-12-2018;
969;2;0;"190,41";"202,51";ENEL ENERGIA SPA;Z1221C2375;SALDO Fatt.n. 004812041098  del 13/11/2018 IMPIANTI SPORTIVI POD IT001E34292050 CONSUMI MESE OTTOBRE 2018;12-12-2018;5290;2;59;1;Spese correnti;3;Acquisto di beni e servizi;2;Acquisto di servizi;5;Utenze e canoni;4;Energia elettrica;12-12-2018;
970;1;0;"30,13";"2.948,07";ENEL ENERGIA SPA;Z1221C2375;SALDO Fatt.n. 004812041106  del 13/11/2018 PUBBLICA - POD IT001E34262351 - CONSUMI OTTOBRE 2018;12-12-2018;5980;2;60;1;Spese correnti;3;Acquisto di beni e servizi;2;Acquisto di servizi;5;Utenze e canoni;4;Energia elettrica;12-12-2018;
970;2;0;"43,71";"2.948,07";ENEL ENERGIA SPA;Z1221C2375;SALDO Fatt.n. 004812041105  del 13/11/2018 PUBBLICA - POD IT001E34262364 - CONSUMI OTTOBRE 2018;12-12-2018;5980;2;60;1;Spese correnti;3;Acquisto di beni e servizi;2;Acquisto di servizi;5;Utenze e canoni;4;Energia elettrica;12-12-2018;
970;3;0;"80,40";"2.948,07";ENEL ENERGIA SPA;Z1221C2375;SALDO Fatt.n. 004812041093  del 13/11/2018 PUBBLICA - POD IT001E33747448 - CONSUMI OTTOBRE 2018;12-12-2018;5980;2;60;1;Spese correnti;3;Acquisto di beni e servizi;2;Acquisto di servizi;5;Utenze e canoni;4;Energia elettrica;12-12-2018;
970;4;0;"135,68";"2.948,07";ENEL ENERGIA SPA;Z1221C2375;SALDO Fatt.n. 004812041102  del 13/11/2018 PUBBLICA - POD IT001E32202624 - CONSUMI OTTOBRE 2018;12-12-2018;5980;2;60;1;Spese correnti;3;Acquisto di beni e servizi;2;Acquisto di servizi;5;Utenze e canoni;4;Energia elettrica;12-12-2018;
970;5;0;"203,01";"2.948,07";ENEL ENERGIA SPA;Z1221C2375;SALDO Fatt.n. 004812041110  del 13/11/2018 PUBBLICA - POD IT001E32111930 - CONSUMI OTTOBRE 2018;12-12-2018;5980;2;60;1;Spese correnti;3;Acquisto di beni e servizi;2;Acquisto di servizi;5;Utenze e canoni;4;Energia elettrica;12-12-2018;
970;6;0;"221,42";"2.948,07";ENEL ENERGIA SPA;Z1221C2375;SALDO Fatt.n. 004812041100  del 13/11/2018 PUBBLICA - POD IT001E31151280 - CONSUMI OTTOBRE 2018;12-12-2018;5980;2;60;1;Spese correnti;3;Acquisto di beni e servizi;2;Acquisto di servizi;5;Utenze e canoni;4;Energia elettrica;12-12-2018;
970;7;0;"307,38";"2.948,07";ENEL ENERGIA SPA;Z1221C2375;SALDO Fatt.n. 004812082363  del 14/11/2018 PUBBLICA - POD IT001E34262353 - CONSUMI OTTOBRE 2018;12-12-2018;5980;2;60;1;Spese correnti;3;Acquisto di beni e servizi;2;Acquisto di servizi;5;Utenze e canoni;4;Energia elettrica;12-12-2018;
970;8;0;"329,72";"2.948,07";ENEL ENERGIA SPA;Z1221C2375;SALDO Fatt.n. 004812041096  del 13/11/2018 PUBBLICA - POD IT001E34262356 - CONSUMI OTTOBRE 2018;12-12-2018;5980;2;60;1;Spese correnti;3;Acquisto di beni e servizi;2;Acquisto di servizi;5;Utenze e canoni;4;Energia elettrica;12-12-2018;
970;9;0;"371,44";"2.948,07";ENEL ENERGIA SPA;Z1221C2375;SALDO Fatt.n. 004812041111  del 13/11/2018 PUBBLICA - POD IT001E34262349 - CONSUMI OTTOBRE 2018;12-12-2018;5980;2;60;1;Spese correnti;3;Acquisto di beni e servizi;2;Acquisto di servizi;5;Utenze e canoni;4;Energia elettrica;12-12-2018;
970;10;0;"458,20";"2.948,07";ENEL ENERGIA SPA;Z1221C2375;SALDO Fatt.n. 004812041097  del 13/11/2018 PUBBLICA - POD IT001E34262358 - CONSUMI OTTOBRE 2018;12-12-2018;5980;2;60;1;Spese correnti;3;Acquisto di beni e servizi;2;Acquisto di servizi;5;Utenze e canoni;4;Energia elettrica;12-12-2018;
970;11;0;"766,98";"2.948,07";ENEL ENERGIA SPA;Z1221C2375;SALDO Fatt.n. 004812041107  del 13/11/2018 PUBBLICA - POD IT001E34262352 - CONSUMI OTTOBRE 2018;12-12-2018;5980;2;60;1;Spese correnti;3;Acquisto di beni e servizi;2;Acquisto di servizi;5;Utenze e canoni;4;Energia elettrica;12-12-2018;
971;1;0;"-62,29";"67,20";SPIGAS S.R.L.;Z751F9A68C;SALDO Fatt.n. PA057862/2018  del 30/08/2018 ACCREDITO FORNITURA GAS - EX SCUOLE - CONGUAGLIO CONSUMI MARZO/GIUGNO 2018;12-12-2018;3060;2;151;1;Spese correnti;3;Acquisto di beni e servizi;2;Acquisto di servizi;5;Utenze e canoni;6;Gas;12-12-2018;
971;2;0;"24,24";"67,20";SPIGAS S.R.L.;Z751F9A68C;SALDO Fatt.n. PA063703/2018  del 24/09/2018 UTENZA - PA10852 - EX SCUOLE - CONSUMI AGOSTO 2018;12-12-2018;3060;2;151;1;Spese correnti;3;Acquisto di beni e servizi;2;Acquisto di servizi;5;Utenze e canoni;6;Gas;12-12-2018;
971;3;0;"26,35";"67,20";SPIGAS S.R.L.;Z751F9A68C;SALDO Fatt.n. PA069159/2018  del 30/10/2018 FORNITURA GAS - EX SCUOLE - CONSUMI SETTEMBRE 2018;12-12-2018;3060;2;151;1;Spese correnti;3;Acquisto di beni e servizi;2;Acquisto di servizi;5;Utenze e canoni;6;Gas;12-12-2018;
971;4;0;"78,90";"67,20";SPIGAS S.R.L.;Z751F9A68C;SALDO Fatt.n. PA073625/2018  del 26/11/2018 FORNITURA GAS - EX SCUOLE - UTENZA PA10852 - CONSUMI OTTOBRE 2018;12-12-2018;3060;2;151;1;Spese correnti;3;Acquisto di beni e servizi;2;Acquisto di servizi;5;Utenze e canoni;6;Gas;12-12-2018;
972;1;0;"-16,12";"78,30";SPIGAS S.R.L.;Z751F9A68C;SALDO Fatt.n. PA057863/2018  del 30/08/2018 ACCREDITO FORNITURA GAS - IMPIANTI SPORTIVI - CONGUAGLIO MARZO/GIUGNO 2018;12-12-2018;5290;2;152;1;Spese correnti;3;Acquisto di beni e servizi;2;Acquisto di servizi;5;Utenze e canoni;6;Gas;12-12-2018;
972;2;0;"17,92";"78,30";SPIGAS S.R.L.;Z751F9A68C;SALDO Fatt.n. PA063704/2018  del 24/09/2018 FORNITURA GAS UTENZA PA10853 IMP. SPORTIVI MESE AGOSTO 2018;12-12-2018;5290;2;152;1;Spese correnti;3;Acquisto di beni e servizi;2;Acquisto di servizi;5;Utenze e canoni;6;Gas;12-12-2018;
972;3;0;"19,34";"78,30";SPIGAS S.R.L.;Z751F9A68C;SALDO Fatt.n. PA069160/2018  del 30/10/2018 FORNITURA GAS - IMPIANTI SPORTIVI - CONSUMI MESE SETTEMBRE 2018;12-12-2018;5290;2;152;1;Spese correnti;3;Acquisto di beni e servizi;2;Acquisto di servizi;5;Utenze e canoni;6;Gas;12-12-2018;
972;4;0;"57,16";"78,30";SPIGAS S.R.L.;Z751F9A68C;SALDO Fatt.n. PA073626/2018  del 26/11/2018 FORNITURA GAS IMPIANTI SPORTIVI CONSUMI MESE DI OTTOBRE 2018;12-12-2018;5290;2;152;1;Spese correnti;3;Acquisto di beni e servizi;2;Acquisto di servizi;5;Utenze e canoni;6;Gas;12-12-2018;
973;1;0;"-145,25";"71,16";SPIGAS S.R.L.;Z751F9A68C;SALDO Fatt.n. PA057864/2018  del 30/08/2018 ACCREDITO FORNITURA GAS - MUNICIPIO - CONGUAGLIO MARZO/GIUGNO 2018;12-12-2018;340;2;150;1;Spese correnti;3;Acquisto di beni e servizi;2;Acquisto di servizi;5;Utenze e canoni;6;Gas;12-12-2018;
973;2;0;"2,46";"71,16";SPIGAS S.R.L.;Z751F9A68C;SALDO Fatt.n. PA057865/2018  del 30/08/2018 FORNITURA GAS - BORGO SERVI - CONSUMI LUGLIO 2018;12-12-2018;340;2;150;1;Spese correnti;3;Acquisto di beni e servizi;2;Acquisto di servizi;5;Utenze e canoni;6;Gas;12-12-2018;
973;3;0;"2,46";"71,16";SPIGAS S.R.L.;Z751F9A68C;SALDO Fatt.n. PA063706/2018  del 24/09/2018 UTENZA - PA10855 - BORGO SERVI - CONSUMI AGOSTO 2018;12-12-2018;340;2;150;1;Spese correnti;3;Acquisto di beni e servizi;2;Acquisto di servizi;5;Utenze e canoni;6;Gas;12-12-2018;
973;4;0;"2,46";"71,16";SPIGAS S.R.L.;Z751F9A68C;SALDO Fatt.n. PA073335/2018  del 31/10/2018 FORNITURA GAS - BORGO SERVI - CONSUMI SETTEMBRE 2018;12-12-2018;340;2;150;1;Spese correnti;3;Acquisto di beni e servizi;2;Acquisto di servizi;5;Utenze e canoni;6;Gas;12-12-2018;
973;5;0;"2,46";"71,16";SPIGAS S.R.L.;Z751F9A68C;SALDO Fatt.n. PA073628/2018  del 26/11/2018 FORNITURA GAS - BORGO SERVI - UTENZA PA10855 - CONSUMI OTTOBRE 2018;12-12-2018;340;2;150;1;Spese correnti;3;Acquisto di beni e servizi;2;Acquisto di servizi;5;Utenze e canoni;6;Gas;12-12-2018;
973;6;0;"38,61";"71,16";SPIGAS S.R.L.;Z751F9A68C;SALDO Fatt.n. PA063705/2018  del 24/09/2018 UTENZA - PA10854 - MUNICIPIO - CONSUMI AGOSTO 2018;12-12-2018;340;2;150;1;Spese correnti;3;Acquisto di beni e servizi;2;Acquisto di servizi;5;Utenze e canoni;6;Gas;12-12-2018;
973;7;0;"41,52";"71,16";SPIGAS S.R.L.;Z751F9A68C;SALDO Fatt.n. PA069161/2018  del 30/10/2018 FORNITURA GAS - MUNICIPIO - CONSUMI SETTEMBRE 2018;12-12-2018;340;2;150;1;Spese correnti;3;Acquisto di beni e servizi;2;Acquisto di servizi;5;Utenze e canoni;6;Gas;12-12-2018;
973;8;0;"126,44";"71,16";SPIGAS S.R.L.;Z751F9A68C;SALDO Fatt.n. PA073627/2018  del 26/11/2018 FORNITURA GAS - MUNICIPIO - UTENZA PA10854 - CONSUMI OTTOBRE 2018;12-12-2018;340;2;150;1;Spese correnti;3;Acquisto di beni e servizi;2;Acquisto di servizi;5;Utenze e canoni;6;Gas;12-12-2018;
974;1;0;"90,00";"90,00";CENTRO STUDI AMMINISTRATIVI DELLA MARCA TREVIGIANA;ZC325AD565;SALDO Fatt.n. 529/2018  del 04/12/2018 CORSO DI FORMAZIONE IN HOUSE DEL 14/11/18 A PAESE;12-12-2018;310;0;240;1;Spese correnti;3;Acquisto di beni e servizi;2;Acquisto di servizi;4;Acquisto di servizi per formazione e addestramento del personale dell'ente;4;Acquisto di servizi per formazione obbligatoria;12-12-2018;
975;1;0;"226,73";"226,73";COMUNE DI MANSUE`; ;Rimborso al Comune di Mansue della quota anticipata per conto del Comune di Portobuffole relativamente ai costi di esercizio Istituto Comprensivo di Gorgo al Monticano -  anno scolastico 2016/2017. DET. AAF N. 168/2018;12-12-2018;2210;1;264;1;Spese correnti;4;Trasferimenti correnti;1;Trasferimenti correnti a Amministrazioni Pubbliche;2;Trasferimenti correnti a Amministrazioni Locali;3;Trasferimenti correnti a Comuni;12-12-2018;
976;1;0;"3.806,40";"3.806,40";PROAP ITALIA S.R.L;Z221C840A4;SALDO Fatt.n. PA07/2018  del 10/12/2018 PROGETTO E DL LAVORI DI RIQUALIFICAZIONE DELLE AREE VERDI COMUNALI DI VIA ROMA CON SOSTITUZIONE ARREDI;12-12-2018;9260;2;251;2;Spese in conto capitale;2;Investimenti fissi lordi e acquisto di terreni;3;Beni immateriali;5;Incarichi professionali per la realizzazione di investimenti;1;Incarichi professionali per la realizzazione di investimenti;12-12-2018;
977;1;0;"356,76";"356,76";GRUPPO GIOVANNINI S.R.L.;Z5425882BA;SALDO Fatt.n. 2V9 0001761  del 30/11/2018 FORNITURA MATERIALE ELETTRICO DIVERSO PER FUNZIONAMENTO E UTILIZZO OTTIMALE DELLE ATTREZATURE PROTEZIONE CIVILE;12-12-2018;5190;2;239;1;Spese correnti;3;Acquisto di beni e servizi;1;Acquisto di beni;2;Altri beni di consumo;2;"Carburanti, combustibili e lubrificanti";12-12-2018;
978;1;0;"45,26";"45,26";TESORIERE COMUNALE; ;GIRO DA CCP TESORERIA MESE DI NOVEMBRE 2018 -  SPESE TENUTA CONTO CCP - ANNO 2018 - MESE DI NOVEMBRE 2018 - CFR. REV. N. 929 DI PARI IMPORTO;13-12-2018;490;0;75;1;Spese correnti;3;Acquisto di beni e servizi;2;Acquisto di servizi;16;Servizi amministrativi;999;Altre spese per servizi amministrativi;13-12-2018;
980;1;0;"1.029,50";"1.029,50";FONDAZIONE OPERA IMMACOLATA CONCEZIONE ONLUS; ;ACCONTO Fatt.n. 1343/PI  del 31/10/2018 PRESTAZIONE SANITARIA E RETTA CAMERA CON SERVIZIO LAVANDERIA SIG. C.G. MESE OTTOBRE 2018;13-12-2018;5765;0;131;1;Spese correnti;3;Acquisto di beni e servizi;2;Acquisto di servizi;18;Servizi sanitari;9;Acquisti di servizi sanitari per assistenza ospedaliera;13-12-2018;
982;1;0;"1,33";"5,57";PIAVE SERVIZI S.R.L.; ;SALDO Fatt.n. 04201800002822  del 25/07/2018 UTENZA 10052197-1 - EX ALVEO E PARCHEGGIO - CONSUMI 2 TRIMESTRE 2018;13-12-2018;4500;2;48;1;Spese correnti;3;Acquisto di beni e servizi;2;Acquisto di servizi;5;Utenze e canoni;5;Acqua;13-12-2018;
982;2;0;"4,24";"5,57";PIAVE SERVIZI S.R.L.; ;SALDO Fatt.n. 04201800004068  del 23/10/2018 UTENZA 10052197-1 - EX ALVEO E PARCHEGGIO - CONSUMI 3 TRIMESTRE 2018;13-12-2018;4500;2;48;1;Spese correnti;3;Acquisto di beni e servizi;2;Acquisto di servizi;5;Utenze e canoni;5;Acqua;13-12-2018;
983;1;0;"14,39";"14,39";PIAVE SERVIZI S.R.L.; ;SALDO Fatt.n. 04201800004060  del 23/10/2018 UTENZA 10008635-1 - CIMITERO - CONSUMI 3 TRIMESTRE 2018;13-12-2018;4140;3;47;1;Spese correnti;3;Acquisto di beni e servizi;2;Acquisto di servizi;5;Utenze e canoni;5;Acqua;13-12-2018;
984;1;0;"385,00";"693,00";DAVIDETTI GIUSEPPE; ;Liquidazione servizio di vigilanza in occasione di manifestazioni domenicali e festive da svolgersi nell'anno 2018 mediante utilizzo di Personale di vigilanza dipendente dal Comune di Ponte di Piave. DET. AAG N. 105/2018;13-12-2018;1720;1;227;1;Spese correnti;3;Acquisto di beni e servizi;2;Acquisto di servizi;12;"Lavoro flessibile, quota LSU e acquisto di servizi da agenzie di lavoro interinale";999;Altre forme di lavoro flessibile n.a.c.;13-12-2018;
984;2;0;"308,00";"693,00";SIMIONI FEDERICO; ;Liquidazione servizio di vigilanza in occasione di manifestazioni domenicali e festive da svolgersi nell'anno 2018 mediante utilizzo di Personale di vigilanza dipendente dal Comune di Ponte di Piave. DET. AAG N. 105/2018;13-12-2018;1720;1;227;1;Spese correnti;3;Acquisto di beni e servizi;2;Acquisto di servizi;12;"Lavoro flessibile, quota LSU e acquisto di servizi da agenzie di lavoro interinale";999;Altre forme di lavoro flessibile n.a.c.;13-12-2018;
986;1;0;"211,26";"211,26";RICOH ITALIA SRL;ZC5202ED3C;SALDO Fatt.n. 189365353  del 05/12/2018 CANONE DI NOLEGGIO PERIODO 01/09/2018 AL 30/11/2018;13-12-2018;340;5;176;1;Spese correnti;3;Acquisto di beni e servizi;2;Acquisto di servizi;7;Utilizzo di beni di terzi;8;Noleggi di impianti e macchinari;13-12-2018;
987;1;0;"3,40";"11,41";PIAVE SERVIZI S.R.L.; ;SALDO Fatt.n. 04201800004061  del 23/10/2018 UTENZA 10008650-1 - IMPIANTI SPORTIVI - CONSUMI 3. TRIMESTRE 2018;13-12-2018;5290;2;49;1;Spese correnti;3;Acquisto di beni e servizi;2;Acquisto di servizi;5;Utenze e canoni;5;Acqua;13-12-2018;
987;2;0;"3,92";"11,41";PIAVE SERVIZI S.R.L.; ;SALDO Fatt.n. 04201800002817  del 25/07/2018 UTENZA 10008650-1 - IMPIANTI SPORTIVI - CONSUMI 2. TRIMESTRE 2018;13-12-2018;5290;2;49;1;Spese correnti;3;Acquisto di beni e servizi;2;Acquisto di servizi;5;Utenze e canoni;5;Acqua;13-12-2018;
987;3;0;"4,09";"11,41";PIAVE SERVIZI S.R.L.; ;SALDO Fatt.n. 04201800001630  del 30/04/2018 UTENZA 10008650-1 - IMP. SPORTIVI - CONSUMI 1. TRIMESTRE 2018;13-12-2018;5290;2;49;1;Spese correnti;3;Acquisto di beni e servizi;2;Acquisto di servizi;5;Utenze e canoni;5;Acqua;13-12-2018;
988;1;0;"7,96";"23,12";PIAVE SERVIZI S.R.L.; ;SALDO Fatt.n. 04201800004065  del 23/10/2018 UTENZA 10025534-1 - VIA RIVAPIANA - CONSUMI 3. TRIMESTRE 2018;13-12-2018;5290;2;49;1;Spese correnti;3;Acquisto di beni e servizi;2;Acquisto di servizi;5;Utenze e canoni;5;Acqua;13-12-2018;
988;2;0;"15,16";"23,12";PIAVE SERVIZI S.R.L.; ;SALDO Fatt.n. 04201800004056  del 23/10/2018 UTENZA 10008600-1 - IMPIANTI SPORTIVI - CONSUMI 3. TRIMESTRE 2018;13-12-2018;5290;2;49;1;Spese correnti;3;Acquisto di beni e servizi;2;Acquisto di servizi;5;Utenze e canoni;5;Acqua;13-12-2018;
989;1;0;"1,56";"14,38";PIAVE SERVIZI S.R.L.; ;SALDO Fatt.n. 04201800002815  del 25/07/2018 UTENZA 10008600-3 - BORGO SERVI 5 - CONSUMI 2 TRIMESTRE 2018;13-12-2018;340;2;45;1;Spese correnti;3;Acquisto di beni e servizi;2;Acquisto di servizi;5;Utenze e canoni;5;Acqua;13-12-2018;
989;2;0;"12,82";"14,38";PIAVE SERVIZI S.R.L.; ;SALDO Fatt.n. 04201800004058  del 23/10/2018 UTENZA 10008600-3 - BORGO SERVI 5 - CONSUMI 3 TRIMESTRE 2018;13-12-2018;340;2;45;1;Spese correnti;3;Acquisto di beni e servizi;2;Acquisto di servizi;5;Utenze e canoni;5;Acqua;13-12-2018;
990;1;0;"5,67";"13,65";PIAVE SERVIZI S.R.L.; ;SALDO Fatt.n. 04201800002818  del 25/07/2018 UTENZA 10008651-1 - EX SCUOLE ELEMENTARI - CONSUMI 2 TRIMESTRE 2018;13-12-2018;3060;2;46;1;Spese correnti;3;Acquisto di beni e servizi;2;Acquisto di servizi;5;Utenze e canoni;5;Acqua;13-12-2018;
990;2;0;"7,98";"13,65";PIAVE SERVIZI S.R.L.; ;SALDO Fatt.n. 04201800004062  del 23/10/2018 UTENZA 10008651-1 - EX SCUOLE ELEMENTARI - CONSUMI 3 TRIMESTRE 2018;13-12-2018;3060;2;46;1;Spese correnti;3;Acquisto di beni e servizi;2;Acquisto di servizi;5;Utenze e canoni;5;Acqua;13-12-2018;
991;1;0;"6,62";"18,51";PIAVE SERVIZI S.R.L.; ;SALDO Fatt.n. 04201800002821  del 25/07/2018 UTENZA 10034958-1 - MUNICIPIO - CONSUMI 2 TRIMESTRE 2018;13-12-2018;340;2;45;1;Spese correnti;3;Acquisto di beni e servizi;2;Acquisto di servizi;5;Utenze e canoni;5;Acqua;13-12-2018;
991;2;0;"11,89";"18,51";PIAVE SERVIZI S.R.L.; ;SALDO Fatt.n. 04201800004067  del 23/10/2018 UTENZA 10034958-1 - MUNICIPIO - CONSUMI 3 TRIMESTRE 2018;13-12-2018;340;2;45;1;Spese correnti;3;Acquisto di beni e servizi;2;Acquisto di servizi;5;Utenze e canoni;5;Acqua;13-12-2018;
992;1;0;"2,50";"18,49";PIAVE SERVIZI S.R.L.; ;SALDO Fatt.n. 04201800002816  del 25/07/2018 UTENZA 10008614-1 - MUNICIPIO-CASA GAIA - CONSUMI 2 TRIMESTRE 2018;13-12-2018;340;2;45;1;Spese correnti;3;Acquisto di beni e servizi;2;Acquisto di servizi;5;Utenze e canoni;5;Acqua;13-12-2018;
992;2;0;"2,74";"18,49";PIAVE SERVIZI S.R.L.; ;SALDO Fatt.n. 04201800004069  del 23/10/2018 UTENZA 10068059-1 - VIALE MARGHERITA-MERCATO - CONSUMI 3 TRIMESTRE 2018;13-12-2018;340;2;45;1;Spese correnti;3;Acquisto di beni e servizi;2;Acquisto di servizi;5;Utenze e canoni;5;Acqua;13-12-2018;
992;3;0;"2,75";"18,49";PIAVE SERVIZI S.R.L.; ;SALDO Fatt.n. 04201800002823  del 25/07/2018 UTENZA 10068059-1 - VIALE MARGHERITA-MERCATO - CONSUMI 2 TRIMESTRE 2018;13-12-2018;340;2;45;1;Spese correnti;3;Acquisto di beni e servizi;2;Acquisto di servizi;5;Utenze e canoni;5;Acqua;13-12-2018;
992;4;0;"3,28";"18,49";PIAVE SERVIZI S.R.L.; ;SALDO Fatt.n. 04201800004059  del 23/10/2018 UTENZA 10008614-1 - MUNICIPIO-CASA GAIA - CONSUMI 3 TRIMESTRE 2018;13-12-2018;340;2;45;1;Spese correnti;3;Acquisto di beni e servizi;2;Acquisto di servizi;5;Utenze e canoni;5;Acqua;13-12-2018;
992;5;0;"3,29";"18,49";PIAVE SERVIZI S.R.L.; ;SALDO Fatt.n. 04201800001639  del 30/04/2018 UTENZA 10068059-1 - VIALE MARGHERITA-MERCATO - CONSUMI 1 TRIMESTRE 2018;13-12-2018;340;2;45;1;Spese correnti;3;Acquisto di beni e servizi;2;Acquisto di servizi;5;Utenze e canoni;5;Acqua;13-12-2018;
992;6;0;"3,93";"18,49";PIAVE SERVIZI S.R.L.; ;SALDO Fatt.n. 04201800001628  del 30/04/2018 UTENZA 10008614-1 - MUNICIPIO-CASA GAIA - CONSUMI 1 TRIMESTRE 2018;13-12-2018;340;2;45;1;Spese correnti;3;Acquisto di beni e servizi;2;Acquisto di servizi;5;Utenze e canoni;5;Acqua;13-12-2018;
993;1;0;"11,46";"11,46";PIAVE SERVIZI S.R.L.; ;SALDO Fatt.n. 04201800004066  del 23/10/2018 UTENZA 10030309-1 - MUNICIPIO-PIAZZA MERCATO - CONSUMI 3 TRIMESTRE 2018;13-12-2018;340;2;45;1;Spese correnti;3;Acquisto di beni e servizi;2;Acquisto di servizi;5;Utenze e canoni;5;Acqua;13-12-2018;
994;1;0;"10,83";"10,83";PIAVE SERVIZI S.R.L.; ;SALDO Fatt.n. 04201800004063  del 23/10/2018 UTENZA 10008652-1 - PIAZZA VITTORIO EMANUELE-MUNICIPIO - CONSUMI 3 TRIMESTRE 2018;13-12-2018;340;2;45;1;Spese correnti;3;Acquisto di beni e servizi;2;Acquisto di servizi;5;Utenze e canoni;5;Acqua;13-12-2018;
995;1;0;"11,57";"11,57";PIAVE SERVIZI S.R.L.; ;SALDO Fatt.n. 04201800004057  del 23/10/2018 UTENZA 10008600-2 - BORGO SERVI 5 - CONSUMI 3 TRIMESTRE 2018;13-12-2018;340;2;45;1;Spese correnti;3;Acquisto di beni e servizi;2;Acquisto di servizi;5;Utenze e canoni;5;Acqua;13-12-2018;
996;1;0;"-659,74";"2.323,28";MARCON R.D.M. SRL;6168195B87;SALDO Fatt.n. 0000316  del 11/12/2018 STORNO PARZIALE ADDEBITO SERVIZIO SCOLASTICO MESE DI OTTOBRE 2018;13-12-2018;2720;2;13;1;Spese correnti;3;Acquisto di beni e servizi;2;Acquisto di servizi;15;Contratti di servizio pubblico;2;Contratti di servizio di trasporto scolastico;13-12-2018;
996;2;0;"2.983,02";"2.323,28";MARCON R.D.M. SRL;6168195B87;SALDO Fatt.n. 0000307  del 30/11/2018 SERVIZIO DI TRASPORTO SCOLASTICO MESE DI NOVEMBRE 2018;13-12-2018;2720;2;13;1;Spese correnti;3;Acquisto di beni e servizi;2;Acquisto di servizi;15;Contratti di servizio pubblico;2;Contratti di servizio di trasporto scolastico;13-12-2018;
997;1;0;"31,13";"3.047,85";ENEL ENERGIA SPA;Z1221C2375;SALDO Fatt.n. 004812218320  del 05/12/2018 PUBBLICA - POD IT001E34262351 - CONSUMI NOVEMBRE 2018;17-12-2018;5980;2;60;1;Spese correnti;3;Acquisto di beni e servizi;2;Acquisto di servizi;5;Utenze e canoni;4;Energia elettrica;17-12-2018;
997;2;0;"40,49";"3.047,85";ENEL ENERGIA SPA;Z1221C2375;SALDO Fatt.n. 004812218319  del 05/12/2018 PUBBLICA - POD IT001E34262364 - CONSUMI NOVEMBRE 2018;17-12-2018;5980;2;60;1;Spese correnti;3;Acquisto di beni e servizi;2;Acquisto di servizi;5;Utenze e canoni;4;Energia elettrica;17-12-2018;
997;3;0;"80,23";"3.047,85";ENEL ENERGIA SPA;Z1221C2375;SALDO Fatt.n. 004812218307  del 05/12/2018 PUBBLICA - POD IT001E33747448 - CONSUMI NOVEMBRE 2018;17-12-2018;5980;2;60;1;Spese correnti;3;Acquisto di beni e servizi;2;Acquisto di servizi;5;Utenze e canoni;4;Energia elettrica;17-12-2018;
997;4;0;"147,89";"3.047,85";ENEL ENERGIA SPA;Z1221C2375;SALDO Fatt.n. 004812218316  del 05/12/2018 PUBBLICA - POD IT001E32202624 - CONSUMI NOVEMBRE 2018;17-12-2018;5980;2;60;1;Spese correnti;3;Acquisto di beni e servizi;2;Acquisto di servizi;5;Utenze e canoni;4;Energia elettrica;17-12-2018;
997;5;0;"212,95";"3.047,85";ENEL ENERGIA SPA;Z1221C2375;SALDO Fatt.n. 004812218325  del 05/12/2018 PUBBLICA - POD IT001E32111930 - CONSUMI NOVEMBRE 2018;17-12-2018;5980;2;60;1;Spese correnti;3;Acquisto di beni e servizi;2;Acquisto di servizi;5;Utenze e canoni;4;Energia elettrica;17-12-2018;
997;6;0;"214,13";"3.047,85";ENEL ENERGIA SPA;Z1221C2375;SALDO Fatt.n. 004812218314  del 05/12/2018 PUBBLICA - POD IT001E31151280 - CONSUMI NOVEMBRE 2018;17-12-2018;5980;2;60;1;Spese correnti;3;Acquisto di beni e servizi;2;Acquisto di servizi;5;Utenze e canoni;4;Energia elettrica;17-12-2018;
997;7;0;"337,16";"3.047,85";ENEL ENERGIA SPA;Z1221C2375;SALDO Fatt.n. 004812218310  del 05/12/2018 PUBBLICA  - POD IT001E34262356 - CONSUMI NOVEMBRE 2018;17-12-2018;5980;2;60;1;Spese correnti;3;Acquisto di beni e servizi;2;Acquisto di servizi;5;Utenze e canoni;4;Energia elettrica;17-12-2018;
997;8;0;"346,58";"3.047,85";ENEL ENERGIA SPA;Z1221C2375;SALDO Fatt.n. 004812218322  del 05/12/2018 PUBBLICA - POD IT001E34262353 - CONSUMI NOVEMBRE 2018;17-12-2018;5980;2;60;1;Spese correnti;3;Acquisto di beni e servizi;2;Acquisto di servizi;5;Utenze e canoni;4;Energia elettrica;17-12-2018;
997;9;0;"372,26";"3.047,85";ENEL ENERGIA SPA;Z1221C2375;SALDO Fatt.n. 004812218326  del 05/12/2018 PUBBLICA - POD IT001E34262349 - CONSUMI NOVEMBRE 2018;17-12-2018;5980;2;60;1;Spese correnti;3;Acquisto di beni e servizi;2;Acquisto di servizi;5;Utenze e canoni;4;Energia elettrica;17-12-2018;
997;10;0;"480,16";"3.047,85";ENEL ENERGIA SPA;Z1221C2375;SALDO Fatt.n. 004812218311  del 05/12/2018 PUBBLICA - POD IT001E34262358 - CONSUMI NOVEMBRE 2018;17-12-2018;5980;2;60;1;Spese correnti;3;Acquisto di beni e servizi;2;Acquisto di servizi;5;Utenze e canoni;4;Energia elettrica;17-12-2018;
997;11;0;"784,87";"3.047,85";ENEL ENERGIA SPA;Z1221C2375;SALDO Fatt.n. 004812218321  del 05/12/2018 PUBBLICA - POD IT001E34262352 - CONSUMI NOVEMBRE 2018;17-12-2018;5980;2;60;1;Spese correnti;3;Acquisto di beni e servizi;2;Acquisto di servizi;5;Utenze e canoni;4;Energia elettrica;17-12-2018;
998;1;0;"44,96";"380,82";ENEL ENERGIA SPA;Z1221C2375;SALDO Fatt.n. 004812218323  del 05/12/2018 UFFICIO TURISTICO - POD IT001E34243020 - CONSUMI NOVEMBRE 2018;17-12-2018;340;2;55;1;Spese correnti;3;Acquisto di beni e servizi;2;Acquisto di servizi;5;Utenze e canoni;4;Energia elettrica;17-12-2018;
998;2;0;"48,64";"380,82";ENEL ENERGIA SPA;Z1221C2375;SALDO Fatt.n. 004812218327  del 05/12/2018 BORGO SERVI - POD IT001E34435837 - CONSUMI NOVEMBRE 2018;17-12-2018;340;2;55;1;Spese correnti;3;Acquisto di beni e servizi;2;Acquisto di servizi;5;Utenze e canoni;4;Energia elettrica;17-12-2018;
998;3;0;"63,61";"380,82";ENEL ENERGIA SPA;Z1221C2375;SALDO Fatt.n. 004812218317  del 05/12/2018 BORGO SERVI - POD IT001E34428110 - CONSUMI NOVEMBRE 2018;17-12-2018;340;2;55;1;Spese correnti;3;Acquisto di beni e servizi;2;Acquisto di servizi;5;Utenze e canoni;4;Energia elettrica;17-12-2018;
998;4;0;"223,61";"380,82";ENEL ENERGIA SPA;Z1221C2375;SALDO Fatt.n. 004812218309  del 05/12/2018 MUNICIPIO - POD IT001E34243473 - CONSUMI NOVEMBRE 2018;17-12-2018;340;2;55;1;Spese correnti;3;Acquisto di beni e servizi;2;Acquisto di servizi;5;Utenze e canoni;4;Energia elettrica;17-12-2018;
999;1;0;"141,28";"141,28";ENEL ENERGIA SPA;Z1221C2375;SALDO Fatt.n. 004812218308  del 05/12/2018 SCUOLA ELEMENTARE - POD IT001E34292199 - CONSUMI NOVEMBRE 2018;17-12-2018;3060;2;56;1;Spese correnti;3;Acquisto di beni e servizi;2;Acquisto di servizi;5;Utenze e canoni;4;Energia elettrica;17-12-2018;
1000;1;0;"45,64";"45,64";ENEL ENERGIA SPA;Z1221C2375;SALDO Fatt.n. 004812218324  del 05/12/2018 SANTA TERESA - POD IT001E32338852 - CONSUMI NOVEMBRE 2018;17-12-2018;3090;2;57;1;Spese correnti;3;Acquisto di beni e servizi;2;Acquisto di servizi;5;Utenze e canoni;4;Energia elettrica;17-12-2018;
1001;1;0;"45,62";"103,92";ENEL ENERGIA SPA;Z1221C2375;SALDO Fatt.n. 004812218313  del 05/12/2018 POMPA SOTTOPASSO - POD IT001E31077052 - CONSUMI NOVEMBRE 2018;17-12-2018;4500;2;58;1;Spese correnti;3;Acquisto di beni e servizi;2;Acquisto di servizi;5;Utenze e canoni;4;Energia elettrica;17-12-2018;
1001;2;0;"58,30";"103,92";ENEL ENERGIA SPA;Z1221C2375;SALDO Fatt.n. 004812218318  del 05/12/2018 POMPA ALVEO - POD IT001E31171399 - CONSUMI NOVEMBRE 2018;17-12-2018;4500;2;58;1;Spese correnti;3;Acquisto di beni e servizi;2;Acquisto di servizi;5;Utenze e canoni;4;Energia elettrica;17-12-2018;
1002;1;0;"12,10";"147,91";ENEL ENERGIA SPA;Z1221C2375;SALDO Fatt.n. 004812218315  del 05/12/2018 EX MANSIONERIA - POD IT001E34292049 - CONSUMI NOVEMBRE 2018;17-12-2018;5290;2;59;1;Spese correnti;3;Acquisto di beni e servizi;2;Acquisto di servizi;5;Utenze e canoni;4;Energia elettrica;17-12-2018;
1002;2;0;"135,81";"147,91";ENEL ENERGIA SPA;Z1221C2375;SALDO Fatt.n. 004812218312  del 05/12/2018 IMPIANTI SPORTIVI - POD IT001E34292050 - CONSUMI MESE NOVEMBRE 2018;17-12-2018;5290;2;59;1;Spese correnti;3;Acquisto di beni e servizi;2;Acquisto di servizi;5;Utenze e canoni;4;Energia elettrica;17-12-2018;
1003;1;0;"5.999,96";"5.999,96";ONGARO CORRADO L'ARTE DEL GIARDINO;Z81252B4B3;SALDO Fatt.n. 01/PA  del 17/12/2018 REALIZZAZIONE LAVORI DI PROLUNGAMENTO DELLA PISTA CICLABILE SULLA S.P. 50 "DI PORTOBUFFOLE'" DA VIA GIUSTINIAN E LUNGO VIA RONCHE IN PORTOBUFFOLE' (TV);18-12-2018;9990;8;138;2;Spese in conto capitale;2;Investimenti fissi lordi e acquisto di terreni;1;Beni materiali;9;Beni immobili;12;Infrastrutture stradali;18-12-2018;
1006;1;0;"2.304,05";"2.304,05";CASSA DEPOSITI E PRESTITI; ;Rata Interessi  2^Sem. 31/12/18 PAVIMENTAZIONE CENTRO STORICO;31-12-2018;6090;0;99999;1;Spese correnti;7;Interessi passivi;5;Interessi su Mutui e altri finanziamenti a medio lungo termine;4;Interessi passivi su finanziamenti a medio lungo termine a Imprese;3;Interessi passivi a Cassa Depositi e Prestiti SPA su mutui e altri finanziamenti a medio lungo termine;31-12-2018;
1007;1;0;"791,60";"1.711,73";CASSA DEPOSITI E PRESTITI; ;Rata Interessi  2^Sem. 31/12/18 COSTRUZIONE IMPIANTI SPORTIVI;31-12-2018;7310;3;99999;1;Spese correnti;7;Interessi passivi;5;Interessi su Mutui e altri finanziamenti a medio lungo termine;4;Interessi passivi su finanziamenti a medio lungo termine a Imprese;3;Interessi passivi a Cassa Depositi e Prestiti SPA su mutui e altri finanziamenti a medio lungo termine;31-12-2018;
1007;2;0;"920,13";"1.711,73";CASSA DEPOSITI E PRESTITI; ;Rata Interessi  2^Sem. 31/12/18 COSTRUZIONE SPOGLIATOI I.S.;31-12-2018;7310;3;99999;1;Spese correnti;7;Interessi passivi;5;Interessi su Mutui e altri finanziamenti a medio lungo termine;4;Interessi passivi su finanziamenti a medio lungo termine a Imprese;3;Interessi passivi a Cassa Depositi e Prestiti SPA su mutui e altri finanziamenti a medio lungo termine;31-12-2018;
1008;1;0;"832,70";"832,70";CASSA DEPOSITI E PRESTITI; ;Rata Interessi  2^Sem. 31/12/18 SISTEMAZIONI STRADALI VIA ROMA;31-12-2018;7310;4;99999;1;Spese correnti;7;Interessi passivi;5;Interessi su Mutui e altri finanziamenti a medio lungo termine;4;Interessi passivi su finanziamenti a medio lungo termine a Imprese;3;Interessi passivi a Cassa Depositi e Prestiti SPA su mutui e altri finanziamenti a medio lungo termine;31-12-2018;
1009;1;0;"1.498,22";"1.498,22";CASSA DEPOSITI E PRESTITI; ;Rata Interessi  2^Sem. 31/12/18 ACQUISTO COMPLESSO IMMOBILIARE CASA GAIA DA CAMINO;31-12-2018;7311;0;99999;1;Spese correnti;7;Interessi passivi;5;Interessi su Mutui e altri finanziamenti a medio lungo termine;4;Interessi passivi su finanziamenti a medio lungo termine a Imprese;3;Interessi passivi a Cassa Depositi e Prestiti SPA su mutui e altri finanziamenti a medio lungo termine;31-12-2018;
